Workbook

Sheet Design Information
B2: UCC28070 Interleaved CCM Boost-PFC Controller Set-Up Tool
B3: TI Literature # | C3: SLUC114 | D3: Rev 2.0 | J3: Unit | K3: Value
B4: Description: This calculator aids in designing with the UCC28070A, UCC28070, and UCC28070-Q1 CCM Boost-PFC controllers. Calculations in this Set-Up Tool follow the design procedure in UCC28070A data sheet SLUSAW0 rev-B. Best viewed at 80% or higher magnification. Note constant items in cell columns J, K, and L, at right. This Set-Up Tool is valid for 2-phase Interleaved CCM Boost-PFC only. It is not valid for 4-phase interleaving, Bridgeless or Semi-Bridgeless PFC, Totempole-PFC, Buck-PFC, Buck-Boost-PFC, Boost-Follower, nor any other PFC topology. Also, DC input voltage is not supported by this tool and designs using this tool for DC input voltage are not valid . | J4: mW = | K4: 0.001
J5: mA = | K5: 0.001
J6: µA = | K6: 1e-06
J7: µF = | K7: 1e-06
J8: mH = | K8: 0.001
B9: Disclaimer: See 'Notice and Disclaimer' sheet for Important disclaimer information. | J9: µH = | K9: 1e-06
J10: pF = | K10: 1e-12
J11: kΩ = | K11: 1000
J12: MΩ = | K12: 1000000
B13: Enter design parameters into the YELLOW cells: | J13: kHz = | K13: 1000
B14: Calculated results appear in the GRAY cells: | J14: µs = | K14: 1e-06
J15: VREF = | K15: 6 | L15: V
B16: Notifications | J16: VREG = | K16: 3 | L16: V
B17: If any Error notification is visible (in red, bold text) the PFC design is invalid. Some aspect of a valid design cannot be achieved using the existing input. Valid designs should have no Error messages. | J17: gMC = | K17: 0.0001 | L17: A/V
B18: If any Alert notification is visible (in red, bold text) the PFC design is valid, but verify that the alerted discrepancy is intentional. | J18: gMV = | K18: 7e-05 | L18: A/V
B19: If any Notice message is visible (in black, regular text), then the PFC design is valid, but extra design considerations may be helpful. | J19: ISS = | K19: 1e-05 | L19: A
B21: Overall PFC Design Targets | J21: NOTICE:
B22: Design Parameters | C22: Variable Names | D22: Value | E22: Unit | F22: Note | G22: Notifications | H22: Comments | J22: The following assumptions must be true for successful PFC design using this Set-Up Tool:
J23: 1. All yellow User-Input values have been changed by User from default example values to actual User values.
B24: Step 1: Enter Input-Line Voltage and Frequency Parameters | J24: 2. Entry and selection values are reasonably close to the target values provided.
J25: 3. The component values in both phases are identical. No special unbalanced or assymmetrical configurations (electrically, not mechanically).
B26: Type of Input Voltage (AC only) | C26: VIN_type = | D26: AC | J26: 4. Current Synthesis is enabled; that is, RSYNTH input is not raised above 5V.
B27: è Enter Maximum Input Voltage | C27: VIN(max) = | D27: 264 | E27: =IF(VIN_type="AC","Vrms",IF(VIN_type="DC","Vdc","Error")) -> Vrms
B28: è Enter Minimum Input Voltage | C28: VIN(min) = | D28: 85 | E28: =IF(VIN_type="AC","Vrms",IF(VIN_type="DC","Vdc","Error")) -> Vrms
B30: è Enter Maximum Input Line Frequency to PFC | C30: fLINE(max) = | D30: 63 | E30: Hz | G30: =IF(fLINE_max>800,"Error: Input frequency > 800Hz is not supported",IF(fLINE_max>359,"Alert: Higher avionics frequencies may show increased THDi", IF(AND(VIN_type="AC",fLINE_max=0), "Error: AC input type may not have 0Hz",IF(fLINE_max<0,"Error: Negative frequencies are not allowed","")))) -> 
B31: è Enter Minimum Input Line Frequency to PFC | C31: fLINE(min) = | D31: 47 | E31: Hz | G31: =IF(fLINE_min>fLINE_max,"Error: minimum frequency must not be higher than maximum frequency", IF(fLINE_min>800,"Error: Input frequency > 800Hz is not supported",IF(fLINE_min>359,"Alert: Higher avionics frequencies may show increased THDi", IF(AND(VIN_type="AC",fLINE_min=0), "Error: AC input type may not have 0Hz",IF(fLINE_min<0,"Error: Negative frequencies are not allowed",""))))) -> 
B33: Step 2: Enter Output Voltage and Power Targets
B35: è Enter the target Nominal Output Voltage of PFC | C35: VOUT(nom) (tgt) = | D35: 390 | E35: V | G35: =IF(VOUT_nom_tgt<VIN_max*1.4142,"Error: Output voltage target must be higher than peak of maximum input voltage.",IF(VOUT_nom_tgt<(VIN_max*1.4142)/(1-0.15/tSW),"Alert: Vout(nom) should be higher to maintain a sufficient difference above the peak input voltage.","")) -> 
B36: è Enter the target peak-to-peak ripple Voltage on output | C36: VOUT(ripple) (tgt) = | D36: 11 | E36: Vpkpk | H36: If unknown, it is suggested to keep pk-pk Vripple < 5% of Vout(nom)
B37: è Enter Minimum Output Voltage (same as Hold-Up target at cell D134). | C37: VOUT(min) (tgt) = | D37: 300 | E37: V | G37: Notice: Consider possible peak inrush current on recovery from input voltage dip or drop-out.
B39: è Enter Nominal Rated Output Power (Steady-state) | C39: POUT(nom) = | D39: 1000 | E39: W | H39: This power level determines the PFC thermal design.
B40: è Enter Expected Efficiency for POUT(nom) at VIN(min) | C40: ηVIN(min) = | D40: 0.95 | G40: =IF(η_VIN_min>0.98,"Error: Efficiency value must be < 0.98",IF(η_VIN_min>0.96,"Alert: Verify that η > 0.96 is a reasonable expectation.",IF(η_VIN_min<=0.91,"Alert: Verify that η < 0.91 is a reasonable expectation.",""))) -> 
B41: Calculated nominal input power at rated output | C41: PIN(nom) = | D41: =POUT_nom/η_VIN_min -> 1052.631579 | E41: W
B42: AC input current (RMS) (at rated power, minimum input voltage) | C42: IIN_rms (nom) = | D42: =(PIN_nom/VIN_min) -> 12.38390093 | E42: Arms
B43: AC input current (peak) (at rated power, minimum input voltage) | C43: IIN_peak (nom) = | D43: =1.4142*IIN_rms_nom -> 17.51331269 | E43: Apk
B45: è Enter Additional Output as Percent of Nominal Power (Short-term) | C45: PExtra% = | D45: 10 | E45: % | G45: =IF(PExtra<0,"Error: Pextra% < 0 is not allowed.",IF(PExtra>30,"Alert: Verify that > 30% extra power capability is intentional.","")) ->  | H45: Typically 10~20% extra for load-step transient recovery and design margin.
B46: Calculated output power at extra level | C46: POUT(extra) = | D46: =POUT_nom*(1+PExtra/100) -> 1100 | E46: W | H46: This power level determines the PFC current stresses.
B47: Calculated input power at extra output level | C47: PIN(extra) = | D47: =POUT_extra/η_VIN_min -> 1157.894737 | E47: W
B48: AC input current (RMS) (at extra power, minimum input voltage) | C48: IIN_rms (extra) = | D48: =(PIN_extra/VIN_min) -> 13.62229102 | E48: Arms
B49: AC input current (peak) (at extra power, minimum input voltage) | C49: IIN_peak (extra) = | D49: =1.4142*IIN_rms_extra -> 19.26464396 | E49: Apk
B51: Step 3: Enter Controller Part Number and IC Bias Voltage (VCC)
B53: è Enter Maximum Bias Voltage to VCC pin of UCC28070 | C53: VCC(max) = | D53: 14 | E53: V | G53: =IF(VCC_max>21, "Error: VCC of UCC28070 should be biased by a voltage source </= 21Vdc", "") -> 
B54: è Enter Minimum Bias Voltage to VCC pin of UCC28070 | C54: VCC(min) = | D54: 12 | E54: V | G54: =IF(VCC_min<11, "Error: VCC of UCC28070 should be biased by a voltage source >/= 11Vdc", "") -> 
G55: =IF((VCC_min>VCC_max),"Error: Voltages not in descending order, or incorrect entry", IF(VCC_max>1.25*VCC_min,"Alert: >25% min-to-max variation; check for incorrect entry", "")) -> 
B57: PFC System-Level Calculations
B58: Design Parameters | C58: Variable Names | D58: Value | E58: Unit | F58: Note | G58: Notifications | H58: Comments
B60: Step 1: Program the Output Voltage
B62: è Enter the target maximum power dissipation of VSENSE Voltage Divider | C62: PVSENSE (tgt) = | D62: 50 | E62: mW | H62: A typical target is ~50mW, for example.
B63: Calculated Upper Resistor of VSENSE Voltage Divider | C63: RA (tgt) = | D63: =(VOUT_nom_tgt^2)/PVSENSE_tgt/mW/_MΩ -> 3.042 | E63: MΩ
B64: è Enter the actual Upper Resistor of VSENSE Voltage Divider | C64: RA = | D64: 3 | E64: MΩ | F64: use ±1% | H64: RA for VINAC divider should be the same value.
B65: Calculated Lower Resistor of VSENSE Voltage Divider | C65: RB (tgt) = | D65: =(VREG*(RA*_MΩ))/(VOUT_nom_tgt-VREG) /kΩ -> 23.25581395 | E65: kΩ
B66: è Enter the actual Lower Resistor of VSENSE Voltage Divider | C66: RB = | D66: 23.2 | E66: kΩ | F66: use ±1% | H66: RB for VINAC divider should be the same value.
B67: Calculated nominal output voltage based on selected RA and RB | C67: VOUT(nom) = | D67: =(VREG)*(1+(RA*_MΩ)/(RB*kΩ)) -> 390.9310345 | E67: V | G67: =IF(OR(VOUT_nom<0.95*VOUT_nom_tgt,VOUT_nom>1.05*VOUT_nom_tgt),"Alert: Vout(nom) deviates by more than +/-5% from Vout_nom target in cell D35.","") -> 
B68: VSENSE and VINAC divider ratio (for reference) | C68: KR = | D68: =RB*kΩ / (RA*_MΩ + RB*kΩ) -> 0.007673987827
B69: VSENSE and VINAC filter capacitors CB4 and CB1 limitation | C69: CB1 , CB4 ≤ | D69: =(100*us)/(RB*kΩ) * (47/fLINE_min) / pF -> 4310.344828 | E69: pF | H69: Limitation based on 100µs max time constant at VINAC for 47Hz input. Use lower values when possible.
B71: Calculated Nominal Over Voltage Trip Point | C71: VOVP = | D71: =1.06*VREG/KR -> 414.3868966 | E71: V
B72: Calculated Actual VSENSE Divider Stand-by Power Dissipation | C72: PVSENSE (max) = | D72: =(VOUT_nom^2) / (RA*_MΩ + RB*kΩ) /mW -> 50.55142687 | E72: mW | H72: Use this loss value to select appropriate sizes of divider resistors.
B73: Calculated Actual VINAC Divider Stand-by Power Dissipation | C73: PVINAC (max) = | D73: =(VIN_max^2) / (RA*_MΩ + RB*kΩ) /mW -> 23.05371791 | E73: mW | H73: Use this loss value to select appropriate sizes of divider resistors.
B75: Step 2: Program the Switching Frequency and Related Parameters
B77: è Select Specific Variant from Controller Family List | C77: CTLR = | D77: UCC28070A | G77: =IF(OR(CTLR="UCC28070",CTLR="UCC28070-Q1",CTLR="UCC28070A"),"", "Error: Controller must be selected from drop-down list.") ->  | H77: =IF(CTLR="UCC28070A", "Notice: switching frequency range is 300kHz to 10kHz.", "Notice: switching frequency range is 300kHz to 30kHz.") -> Notice: switching frequency range is 300kHz to 10kHz.
B78: è Enter the target nominal switching frequency fSW | C78: fSW (tgt) = | D78: 100 | E78: kHz | G78: =IF(fSW_tgt>300,"Error: Switching frequency target must be </= 300kHz.",IF(AND(CTLR="UCC28070A",fSW_tgt<10),"Error: For UCC28070A, switching frequency target must be >/= 10kHz.",IF(AND(OR(CTLR="UCC28070",CTLR="UCC28070-Q1"),fSW_tgt<30),"Error: For UCC28070 and UCC28070-Q1, switching frequency target must be >/=30kHz.",""))) -> 
B79: è Enter if synchronizing fSW to external SYNC signal or not | C79: External SYNC = | D79: No
B80: External SYNC frequency needed to achieve target fSW | C80: fSYNC (tgt) = | D80: =IF(SYNC="Yes", fSW_tgt*2, "N/A" ) -> N/A | E80: kHz
B81: è Enter actual synchronization frequency (fSYNC) used | C81: fSYNC = | E81: kHz | G81: =IF(AND(SYNC="Yes",NOT(fSYNC=fSYNC_tgt)), "Alert: Actual fSYNC entered is different than fSYNC target.", "") -> 
B82: è Enter actual synchronization pulse width (tSYNC_PW) used | C82: tSYNC_PW = | E82: µs | G82: =IF(SYNC="Yes",IF(OR(tSYNC_PW<0.2,(tSYNC_PW*us)*(fSYNC*kHz)>0.5),"Error: SYNC pulse width is outside of specified limits.",""), "") ->  | H82: It is recommended to make tSYNC as close as possible to 0.2µs.
B83: Actual SYNC pulse duty cycle | C83: DSYNC = | D83: =IF(SYNC="Yes", ((tSYNC_PW+0.1)*us)*(fSYNC*kHz), "N/A" ) -> N/A | H83: DSYNC includes adjustment for 100ns propagation delay of tSYNC_PW falling edge.
B84: è Enter if "on-chip" Frequency Dithering is Enabled or Disabled | C84: Frequency Dithering = | D84: Enabled | G84: =IF(NOT(OR(Dith="Enabled",Dith="Disabled")),"Error: Entry must be selected from drop-down list only.", IF(AND(SYNC="Yes",Dith="Enabled"),"Error: 'On-chip' Frequency Dithering must be Disabled when external SYNC is used.","")) -> 
B85: è Enter the target dithering magnitude fDM (Note: max ΔfSW = ± fDM/2). | C85: fDM (tgt) = | D85: 10 | E85: kHz | G85: =IF(fDM_tgt<9,"Alert: fDM < 9kHz will have diminishing effect on conducted-EMI reduction.",IF(fDM_tgt>20,"Alert: fDM > 20kHz may introduce stability issues.","")) ->  | H85: For no Dithering, set fDM (tgt) and fDR (tgt) each to "0"
B86: è Enter the target dithering rate fDR | C86: fDR (tgt) = | D86: 1 | E86: kHz | G86: =IF(fDR_tgt<0.1,"Alert: fDR < 0.1kHz will have diminishing effect on conducted-EMI reduction.",IF(fDR_tgt>6,"Alert: fDR > 6kHz may introduce stability issues.","")) ->  | H86: For no Dithering, set fDM (tgt) and fDR (tgt) each to "0"
B87: Adjustment factor to Current-Loop gain when using external SYNC input | C87: kSYNC = | D87: =IF(SYNC="No", 1, (15000 / RRT)/fSYNC ) -> 1
B89: Calculated Timing Resistor for targeted fSW | C89: RRT (tgt) = | D89: =IF(SYNC="No", (7500/fSW_tgt), ((15000/(fSYNC-fDM_tgt/2))*1.1) ) -> 75 | E89: kΩ | G89: =IF(SYNC="No", "", "Notice: Recommended Rrt value is adjusted for SYNC input." ) -> 
B90: è Enter actual Timing Resistor Value | C90: RRT = | D90: 75 | E90: kΩ | F90: use ±1% | G90: =IF(RRT<0.98*RRT_tgt,"Error: Rrt must be closer to Rrt target. ", IF(AND(SYNC="Yes",RRT>1.2*RRT_tgt),"Error: Abnormal switching behavior may occur unless Rrt value is set much closer to Rrt target.", IF(RRT>1.02*RRT_tgt,"Error: Rrt must be closer to Rrt target.",""))) -> 
B91: Calculated actual switching frequency fSW, based on RRT or on fSYNC | C91: fSW = | D91: =IF(SYNC="No", (7500/RRT), fSYNC/2) -> 100 | E91: kHz | G91: =IF(SYNC="No", IF(OR(fSW<0.95*fSW_tgt,fSW>1.05*fSW_tgt),"Alert: Actual switching frequency is more than ±5% away from the target frequency.",""),"") -> 
B92: Calculated actual switching period tSW, based on RRT or on fSYNC | C92: tSW = | D92: =1/(fSW*kHz) /us -> 10 | E92: µs
B94: è Enter the target maximum duty cycle DMAX | C94: DMAX (tgt) = | D94: 0.97 | G94: =IF(DMAX_tgt > 0.98, "Error: Dmax target too close to 100%. Reduce target.", IF(DMAX_tgt < 0.85, "Alert: Lower Dmax increases current distortion around the zero-crossings.", "")) -> 
B95: Calculated Duty Cycle Limit Resistor for targeted DMAX | C95: RDMX (tgt) = | D95: =IF(SYNC="No", RRT*(2*DMAX_tgt-1), (15000/fSYNC)*(2*DMAX_tgt-1-DSYNC) ) -> 70.5 | E95: kΩ | G95: =IF(SYNC="No", "", "Notice: Recommended Rdmx value is adjusted for SYNC input." ) -> 
B96: è Select Duty Cycle Limit Resistor | C96: RDMX = | D96: 69.8 | E96: kΩ | F96: use ±1% | G96: =IF(DMAX>0.99,"Error: Dmax too high. Reduce value of Rdmx selected.", IF(DMAX>DMAX_tgt,"Alert: Actual Dmax is > target value.", IF(DMAX<0.98*DMAX_tgt,"Alert: Actual Dmax is < target value.",""))) -> 
B97: Calculated actual DMAX based on RDMX selection | C97: DMAX = | D97: =IF(SYNC="No", 0.5*(1+RDMX/RRT), 0.5*((RDMX*fSYNC/15000)+1+DSYNC) ) -> 0.9653333333
B99: Program Dither Magnitude Resistor | C99: RRDM (tgt) = | D99: =IF(SYNC="Yes","'SYNC'", IF(Dith="Disabled",0,937.5/fDM_tgt)) -> 93.75 | E99: kΩ | G99: =IF(SYNC="Yes", "Notice: RDM pin is used for SYNC signal input.", IF(Dith="Disabled", "Notice: To disable Dithering, short RDM input to GND with 0 ohms. ", "" )) -> 
B100: è Select a Standard Value | C100: RRDM = | D100: 93.1 | E100: kΩ | F100: use ±1% | G100: =IF(OR(RRDM<0.95*RRDM_tgt,RRDM>1.05*RRDM_tgt), "Alert: Actual fDM will be more than +/- 5% from target value.", "") -> 
B101: Program Dither Rate Capacitor | C101: CCDR (tgt) = | D101: =IF(Dith="Disabled", "'VREF'", 66.7*(RRDM/fDR_tgt) ) -> 6209.77 | E101: pF | G101: =IF(Dith="Disabled", "Notice: To disable Dithering, set CDR input > 5V. It is suggested to short CDR to VREF.", "" ) -> 
B102: è Select a Standard Value | C102: CCDR = | D102: 5600 | E102: pF | F102: use ±5% | G102: =IF(OR(CCDR<0.9*CCDR_tgt,CCDR>1.1*CCDR_tgt), "Alert: Actual fDR will be more than +/- 10% from target value.", "") -> 
B103: Calculated actual Dither Magnitude based on RRDM selection | C103: fDM = | D103: =937.5/RRDM -> 10.0698174 | E103: kHz
B104: Calculated actual Dither Rate based on CCDR selection | C104: fDR = | D104: =66.7*(RRDM/CCDR) -> 1.1088875 | E104: kHz
B106: Calculated maximum switching frequency | C106: fSW(nom) + fDM/2 = | D106: =IF(SYNC="No", fSW + fDM/2, fSYNC + fDM_tgt/2 ) -> 105.0349087 | E106: kHz
B107: Calculated minimum switching frequency | C107: fSW(nom) - fDM/2 = | D107: =IF(SYNC="No", fSW - fDM/2, fSYNC - fDM_tgt/2 ) -> 94.9650913 | E107: kHz
B108: Approximate number of switching cycles between min and max fSW | C108: NΔfSW = | D108: =IF(SYNC="No", fSW/fDR/2, fSYNC/fDR_tgt/2 ) -> 45.09023684
B110: Step 3: Calculations for Boost Inductors
B112: è Enter the Highest RMS input voltage at which CCM operation is to be maintained | C112: Vrms_CCM(max) = | D112: 230 | E112: =IF(VIN_type="AC","Vrms",IF(VIN_type="DC","Vdc","Error")) -> Vrms | G112: =IF(OR(Vrms_CCM_max<VIN_min,Vrms_CCM_max>VIN_max), "Error: Vrms_CCM(max) target must be within VIN_max and VIN_min.", "") ->  | H112: CCM = Continuous Conduction Mode of inductor current
B113: è Enter the Lowest total output power level where CCM is to be maintained | C113: PO_CCM(min) = | D113: 333 | E113: W | G113: =IF(PO_CCM_min>POUT_nom, "Error: Po_CCM(min) target must be less than Pout(nom).", IF(PO_CCM_min<POUT_nom/3, "Alert: Lower targets for Po_CCM(min) require increasingly higher inductances.", "")) -> Alert: Lower targets for Po_CCM(min) require increasingly higher inductances.
B114: Calculated lowest power level per inductor where CCM is to be maintained | C114: PLx_CCM(min) = | D114: =PO_CCM_min/2 -> 166.5 | E114: W
B115: è Enter the Expected conversion efficiency at PO_CCM(min) and Vrms_CCM(max) | C115: ηPo_ccm(min) = | D115: 0.92
B116: Calculated target boost Inductance at PO_CCM(min) and Vrms_CCM(max) | C116: Lx_CCM (tgt) = | D116: =Vrms_CCM_max^2 / (2 * (PLx_CCM_min/η_Po_ccm_min) *fSW*kHz) /uH -> 1461.501502 | E116: µH
B117: è Enter the value of the Actual Boost Inductance at PO_CCM(min) and Vrms_CCM(max) | C117: L1_CCM, L2_CCM = | D117: 1500 | E117: µH | G117: =IF(Lx_CCM<L_CCM_tgt, "Alert: Inductor current in some portions of the AC half-sine will operate in DCM.", IF(Lx_CCM>1.2*L_CCM_tgt, "Alert: Excess Inductance at CCM target may unnecessarily increase size and cost of inductor. ", "" )) -> 
B118: è Enter the Lowest Inductance of the Real Inductor at 100% load, lowest-line | C118: L1_MIN, L2_MIN = | D118: 1000 | E118: µH | G118: =IF(L_MIN>Lx_CCM, "Error: Lx_min value must be </= Lx_ccm target.", "") -> 
B119: è Enter the Highest Inductance of the Real Inductor at 0% load | C119: L1_MAX, L2_MAX = | D119: 1600 | E119: µH | G119: =IF(L_MAX<Lx_CCM, "Error: Lx_max value must be >/= Lx_ccm target.", "") -> 
B120: Average Boost Inductance Value | C120: L1_AVG, L2_AVG = | D120: =(L_MIN + L_MAX)/2 -> 1300 | E120: µH
B122: Maximum peak-to-peak ripple current in inductor at rated output power | C122: ∆ILx = | D122: =IF( DPLL>0.5, (1.4142*VIN_min/(L_MIN*uH))*DPLL/(fSW*kHz), (1.4142*VIN_min/(L_MIN*uH))*0.5/(fSW*kHz) ) -> 0.8324466758 | E122: Apkpk | G122: =IF(_∆ILx/2>=((POUT_nom/η_VIN_min/VIN_max)*1.4142/2), "Alert: Low Lx_min value allows ripple current to exceed CCM limits.", "") ->  | H122: Use this value to determine core loss for Lboost.
B123: Maximum peak current in inductor at rated output power | C123: ILx_peak = | D123: =(0.5*IIN_peak_nom) + (0.5*(1.4142*VIN_min/(L_MIN*uH))*DPLL/(fSW*kHz)) -> 9.172879685 | E123: Apk
B124: Maximum RMS current in inductor at rated output power | C124: ILx_RMS ≤ | D124: =SQRT( (0.5*IIN_rms_nom)^2 + (_∆ILx/SQRT(12))^2 ) -> 6.196611803 | E124: Arms | H124: Use this value to determine conduction loss for Lboost.
B126: Maximum peak-to-peak ripple current in inductor at extra output power | C126: ∆ILx_xtr = | D126: =IF( DPLL>0.5, (1.4142*VIN_min/(L_MIN*uH))*DPLL/(fSW*kHz), (1.4142*VIN_min/(L_MIN*uH))*0.5/(fSW*kHz) ) -> 0.8324466758 | E126: Apkpk
B127: Maximum peak current in inductor at extra output power | C127: ILx_peak_xtr = | D127: =(0.5*D49) + (0.5*(1.4142*VIN_min/(L_MIN*uH))*DPLL/(fSW*kHz)) -> 10.04854532 | E127: Apk | H127: Use this value to determine Bsat margin for Lboost.
B128: Maximum RMS current in inductor at extra output power | C128: ILx_RMS_xtr ≤ | D128: =SQRT( (0.5*IIN_rms_extra )^2 + (D126/SQRT(12))^2 ) -> 6.815383368 | E128: Arms | H128: Use this value to determine conduction loss for Lboost, if extra power lasts longer than thermal time constant
B130: Duty Cycle at the Peak of Low Line Input | C130: DPLL = | D130: =1 - ((1.4142*VIN_min)/VOUT_nom) -> 0.6925109817
B132: Step 4: Calculations for Output Capacitance
B134: Minimum output Voltage at end of hold-up time (repeated from cell D37) | C134: VOUT_hup (tgt) = | D134: =VOUT_min_tgt -> 300 | E134: V
B135: è Enter the target Hold-up time (in seconds) | C135: thup (tgt) = | D135: 0.011 | E135: s
B136: è Enter which output power level to use for COUT (tgt1) calculation | C136: Phup_lvl = | D136: EXTRA | G136: Note: Select "EXTRA" if extra output power can be active during a significant portion of the hold-up time.
B137: Output Capacitance Calculated Based on Holdup time and Vout_min target | C137: COUT (tgt1) = | D137: =IF(Phup_lvl="RATED", 2*POUT_nom*thup_tgt / ((VOUT_nom^2)-(VOUT_hup_tgt)^2) /uF, IF(Phup_lvl="EXTRA", 2*POUT_nom*(1+PExtra/100)*thup_tgt / ((VOUT_nom^2)-(VOUT_hup_tgt)^2) /uF,"Error")) -> 385.1842616 | E137: µF
B138: Output Capacitance Calculated Based on Vripple target | C138: COUT (tgt2) = | D138: =2*(PIN_nom/VOUT_nom)/(2*PI()*2*fLINE_min*Vripple_tgt) / uF -> 828.9070521 | E138: µF
B139: è Enter Minimum Capacitance necessary to sustain rated HF and LF IRMS | C139: COUT (tgt3) = | D139: 470 | E139: µF | H139: This entry requires a catalog search for one or more capacitors to meet the RMS requirements.
B140: Maximum value of the three previous COUT targets | C140: COUT (tgt) = | D140: =MAX( COUT_tgt1, COUT_tgt2, COUT_tgt3 ) -> 828.9070521 | E140: µF
B141: è Enter the actual Output Capacitance | C141: COUT = | D141: 990 | E141: µF | G141: =IF(COUT<COUT_tgt,"Alert: Selected Cout is too low to meet all requirements.","") ->  | H141: Selected value should include considerations of tolerance and aging.
B142: Actual Output Ripple Voltage (peak-to-peak) | C142: VRIPPLE = | D142: =2*(PIN_nom/VOUT_nom)/(2*PI()*2*fLINE_min*COUT*uF) -> 9.210078357 | E142: Vpkpk
B143: Total Interleaved RMS Current in COUT | C143: ICOUT_TOT = | D143: =IF(DPLL>0.5, (PIN_nom/VOUT_nom)*SQRT( (16/(6*PI()))*(VOUT_nom/(VIN_min*1.4142)) - 1*η_VIN_min^2 ), (1.25*ICOUT_LF)) -> 3.670288591 | E143: Arms
B144: Low Frequency RMS Current in COUT | C144: ICOUT_LF = | D144: =((VRIPPLE/2)/1.4142) * (2*PI()*2*fLINE_min*COUT*uF) -> 1.903993288 | E144: Arms
B145: High Frequency RMS Current in COUT | C145: ICOUT_HF = | D145: =SQRT(ICOUT_TOT^2 - ICOUT_LF^2) -> 3.137806225 | E145: Arms
B146: Actual hold-up time to Vout_min at Pout_nom load level | C146: thup = | D146: =COUT*uF / (2*POUT_nom / ((VOUT_nom^2)-(VOUT_min_tgt)^2)) -> 0.03109940149 | E146: s
B147: Actual hold-up time to Vout_min at Pout_extra load level | C147: thup_extra = | D147: =COUT*uF / (2*POUT_extra / ((VOUT_nom^2)-(VOUT_min_tgt)^2)) -> 0.02827218317 | E147: s
B149: Step 5: Calculations for Switching MOSFETs and Output Diodes
B151: Peak Diode and MOSFET Current (at rated power condition) | C151: IPEAK_rated = | D151: =ILx_peak -> 9.172879685 | E151: Apk
B152: Maximum RMS Current in each MOSFET (Q1, Q2) (at rated power) | C152: IDS_rated = | D152: =(IIN_rms_nom/2) * ( 1 - (8/(3*PI())*(VIN_min*1.4142)/VOUT_nom) )^0.5 -> 5.322899745 | E152: Arms | H152: Use for conduction loss calculations at rated POUT.
B153: Maximum Average Current in each output diode (D1, D2) (at rated power) | C153: ID_rated = | D153: =0.5*(POUT_nom/VOUT_nom) -> 1.278997971 | E153: A | H153: Use for conduction loss calculations at rated POUT.
B155: Peak Diode and MOSFET Current (at extra power condition) | C155: IPEAK_extra = | D155: =ILx_peak_xtr -> 10.04854532 | E155: Apk
B156: Maximum RMS Current in each MOSFET (Q1, Q2) (at extra power) | C156: IDS_extra = | D156: =(IIN_rms_extra/2) * ( 1 - (8/(3*PI())*(VIN_min*1.4142)/VOUT_nom) )^0.5 -> 5.85518972 | E156: Arms | H156: Use for conduction loss calculations at extra POUT.
B157: Maximum Average Current in each output diode (D1, D2) (at extra power) | C157: ID_extra = | D157: =0.5*(POUT_extra/VOUT_nom) -> 1.406897768 | E157: A | H157: Use for conduction loss calculations at extra POUT.
B159: Step 6: Calculations for Current-Sense Transformer (CT) Parameters
B161: Calculated CT turns-ratio to target 0.1A at ILx_peak_xtr | C161: NCT (tgt) = | D161: =ILx_peak_xtr/0.1 -> 100.4854532
B162: è Enter CT Turns Ratio actually used | C162: NCT = | D162: 100
B163: Minimum Magnetizing Inductance target for the CT | C163: LM_CT(min) (tgt) = | D163: =(3.7/(0.02*IPEAK_extra/NCT)) * (1 - VIN_min*1.4142/VOUT_nom)*(tSW*us) /mH -> 12.74956002 | E163: mH
B164: è Enter actual CT magnetizing inductance | C164: LM_CT = | D164: 15 | E164: mH | G164: =IF(LM_CT<0.95*Lm_CT_tgt, "Alert: Low magnetizing inductance of CT results in > 2% current-sense error.", "") -> 
B166: Calculated Current-Sense Resistor | C166: RSx (tgt) = | D166: =(VPKLMT-VOFF-Vramp)/(IPEAK_extra/NCT) -> 33.82364141 | E166: Ω
B167: è Select Standard Current-Sense Resistor | C167: RSA = RSB = | D167: 33.2 | E167: Ω | F167: use ±1% | G167: =IF(RSx>1.02*RSx_tgt, "Alert: Rsx value higher than target may not provide full output power in worst-case conditions.", IF(RSx<0.95*RSx_tgt, "Alert: Rsx significantly lower than target may allow excess output power.", "")) -> 
B168: Calculated worst-case RSx power loss (each), based on IDS_extra | C168: PRS (max) ≤ | D168: =(IDS_extra/NCT)^2*RSx /mW -> 113.8203789 | E168: mW | G168: Use this loss value to select appropriate size of curent-sense resistor.
B170: Calculated CT current at 10% of ½IIN_peak_extra/NCT | C170: IF_CT_10% = | D170: =0.1 * (0.5*IIN_peak_extra/NCT) /mA -> 9.632321981 | E170: mA | G170: Establish a low value of current near the AC-line zero-crossing.
B171: è Enter forward drop of CT output diode DRx at IF_CT_10% | C171: VF_CT = | D171: 0.61 | E171: V | H171: Get VF from forward V-I characteristics curve in diode datasheet.
B172: Calculated Zener target voltage with +33% margin (if Zener diode is used) | C172: VZ (tgt) ≥ | D172: =0*(VPKLMT+1)*DMAX/(1-DMAX) + 1.33 * ((IF_CT_10*mA)*RSx + VF_CT + VOFF + 0.5*Vramp)*DMAX / (1-DMAX) -> 37.16269462 | E172: V | H172: Lower Dmax will reduce the required reset voltage.
B174: è Enter a Zener diode value ≥ VZ (tgt) | C174: VZ = | D174: 47 | E174: V | G174: =IF(VZ<0.9*VZ__tgt, "Alert: Vz voltage significantly lower than Vz target may not reset the CT properly.", "") -> 
B175: Calculated CT Reset peak voltage (if Zener diode reset is used) | C175: VR_Z = | D175: =VZ + 1 -> 48 | E175: V | G175: Reverse voltage stress applied to CT output diode DRx, if Zener reset is used.
B177: Calculated minimum Reset Resistance (if resistor reset is used) | C177: RR (tgt) ≥ | D177: =(LM_CT*mH) / ((tSW*us)*(1-DMAX)/3) /kΩ -> 129.8076923 | E177: kΩ | G177: Based on 3 L/R time constants | H177: Lower Dmax will reduce this.
B178: è Select a Standard Value | C178: RR = | D178: 130 | E178: kΩ | G178: =IF(RR<0.9*RR_tgt, "Alert: Rr value significantly lower than Rr target may not reset the CT properly.", "") -> 
B179: Calculated CT Reset peak voltage (if resistor reset is used) | C179: VR_R = | D179: =(RR*kΩ)*(IM_CT_max*mA) -> 407.3333333 | E179: V | G179: Reverse voltage stress applied to CT output diode DRx, if Resistor reset is used. | H179: Lower Dmax will reduce this. Winding capacitance may prohibit this peak voltage.
B181: Estimated worst-case CT magnetizing current IM_CT | C181: IM_CT(max) ≤ | D181: =((3.7+1)/(LM_CT*mH))*(tSW*us) /mA -> 3.133333333 | E181: mA
B182: Calculated worst-case CT reset power loss, based on IM_CT | C182: PM_CT(max) ≤ | D182: =0.5*(LM_CT*mH)*(IM_CT_max*mA)^2 * (fSW*kHz) /mW -> 7.363333333 | E182: mW | G182: Use this loss value to select appropriate size of reset Zener or Resistor
B184: Step 7: Calculations for Current-Sense Offset and Ramp Voltages
B186: è Enter Current-Sense Offset Voltage Target (Enter 0 if not used) | C186: VOFF (tgt) = | D186: 0.05 | E186: V | H186: Suggest 0.1V to start. Adjust target empirically for minimum THDi during prototype evaluation.
B187: Program Offset Bias Current to be added to RS | C187: ROx (tgt) = | D187: =IF(VOFF_tgt>0, ( ((VCC_min-VOFF_tgt)*RSx)/VOFF_tgt ) / kΩ, "OPEN" ) -> 7.9348 | E187: kΩ
B188: è Enter a Standard Value | C188: ROA=ROB = | D188: 8.2 | E188: kΩ | G188: =IF(VOFF_tgt=0, "Notice: If offset is not used, leave Rox open.", IF(OR(ROx<0.95*ROx_tgt,ROx>1.05*ROx_tgt), "Alert: Select Rox value closer to Rox target.", "")) -> 
B189: Calculated actual offset voltage on CSA and CSB inputs (at VCC_min) | C189: VOFF = | D189: =IF(VOFF_tgt=0, 0, (VCC_min/(ROx*kΩ))*RSx ) -> 0.04858536585 | E189: V | H189: Offset voltage will vary slightly with VCC variations.
B191: è Enter Current-Sense Ramp Peak Voltage Target (Enter 0 if not used) | C191: VOFF + ΔVRAMP (tgt) = | D191: 0.1 | E191: Vpk | H191: Suggest 0.3V to start. Adjust target empirically for minimum THDi during prototype evaluation.
C192: ΔVRAMP (tgt) = | D192: =Vramp_tgt-VOFF -> 0.05141463415 | E192: V | G192: =IF(ΔVRAMP_tgt<0, "Alert: Voff + Vramp peak target must be higher than Voff.", "") -> 
B193: Program current-sense PWM Ramp Resistor | C193: RTx (tgt) = | D193: =IF(ΔVRAMP_tgt>0, RSx*( (MIN(VCC_min-1.5, 13)-0.6)/ΔVRAMP_tgt - 1 ) /kΩ, "OPEN" ) -> 6.359532448 | E193: kΩ
B194: è Select Standard Values | C194: RTA=RTB = | D194: 6.2 | E194: kΩ | G194: =IF(ΔVRAMP_tgt<=0, "Notice: If ramp is not used, leave Rtx open.", IF(OR(RTx<0.95*RTx_tgt,RTx>1.05*RTx_tgt), "Alert: Select Rtx value closer to Rtx target.", "")) -> 
B195: Program current-sense PWM Ramp Timing Capacitor | C195: CTx (tgt) = | D195: =IF(ΔVRAMP_tgt>0, 1/(RSx*fSW*kHz*3) /uF, "OPEN" ) -> 0.1004016064 | E195: µF
B196: è Select Standard Values | C196: CTA=CTB = | D196: 0.1 | E196: µF | G196: =IF(ΔVRAMP_tgt<=0, "Notice: If ramp is not used, leave Ctx open.", IF(OR(CTx<0.8*CTx_tgt,CTx>1.2*CTx_tgt), "Alert: Select Ctx value closer to Ctx target.", "")) -> 
B197: Calculated actual Ramp delta Voltage on CSA and CSB inputs at DMAX | C197: ΔVRAMP = | D197: =IF(ΔVRAMP_tgt=0, 0, (MIN(VCC_min-1.5,13)-0.6)/(RTx*kΩ) * RSx * (1-EXP(-((tSW*us)*DMAX)/(RSx*(CTx*uF)))) ) -> 0.05011813566 | E197: V | H197: Note: Ramp peak voltage is lower for D < Dmax.
B198: Calculated actual Ramp peak Voltage on CSA and CSB inputs at DMAX | C198: VOFF + ΔVRAMP = | D198: =VOFF+Vramp -> 0.09870350152 | E198: Vpk
B200: Step 8: Calculations for Peak Current Limit (PKLMT) Setting
B202: Calculated maximum peak CS voltage at extra power level | C202: VCS_PK = | D202: =(ILx_peak_xtr/NCT)*RSx + (VOFF + Vramp) -> 3.434820548 | E202: V
B203: è Select current-sense Peak Limit Voltage | C203: VPKLMT (tgt) = | D203: 3.5 | E203: V | G203: =IF(VPKLMT_tgt<0.99*VCS_PK, "Alert: Lower PKLMT voltage target may limit maximum output power.", "") -> 
B204: PKLMT divider load on VREF (suggest 0.1mA ≤ IPKLMT ≤ 0.5mA) | C204: IR_PKLMT (tgt) = | D204: 0.1 | E204: mA | G204: =IF(IR_PKLMT_tgt>2, "Error: VREF loading should not exceed 2mA to avoid overload.", "") -> 
B205: Calculated High-Side Resistor on Peak Current Limit Divider | C205: RPK1 (tgt) = | D205: =(VREF-VPKLMT_tgt)/(IR_PKLMT_tgt*mA) /kΩ -> 25 | E205: kΩ
B206: è Select High-Side Resistor on Peak Current Limit Divider | C206: RPK1 = | D206: 24.9 | E206: kΩ | F206: use ±1%
B207: Calculated Low-Side Resistor on Peak Current Limit Divider | C207: RPK2 (tgt) = | D207: =(VPKLMT_tgt*RPK1_)/(VREF-VPKLMT_tgt) -> 34.86 | E207: kΩ
B208: è Select Low-Side Resistor on Peak Current Limit Divider | C208: RPK2 = | D208: 34.8 | E208: kΩ | F208: use ±1%
B209: Calculated actual PKLMT Voltage | C209: VPKLMT = | D209: =VREF*(RPK2_/(RPK1_+RPK2_)) -> 3.497487437 | E209: V | G209: =IF(OR(VPKLMT<0.98*VPKLMT_tgt, VPKLMT>1.02*VPKLMT_tgt), "Error: Vpklmt deviates from Vpklmt target by more than 2%.", "") -> 
B210: Calculated peak inductor current at PKLMT | C210: IL_PKLMT = | D210: =(VPKLMT/RSx)*NCT -> 10.53460071 | E210: A | H210: Result does not include peak increase due to MOSFET turn-off delays.
B212: Calculated PKLMT divider current loading on VREF | C212: IR_PKLMT = | D212: =VREF/(RPK1_+RPK2_) /kΩ /mA -> 0.1005025126 | E212: mA | G212: =IF(OR(IR_PKLMT<0.95*IR_PKLMT_tgt, IR_PKLMT>1.05*IR_PKLMT_tgt), "Alert: Selected Rpk1 and Rpk2 values allow Ir_pklmt current to deviate from target by more than 5%.", "") -> 
B213: Remaining VREF current available for other use. | C213: IVREF_avail = | D213: =2-IR_PKLMT -> 1.899497487 | E213: mA | G213: =IF(D213<0, "Error: Increase Rpk1 and Rpk2 values to draw < 2mA from VREF.", "") -> 
J214: Voltage-Loop Graph Axes Can be Adjusted Based on Individual Need
B215: Step 9: Calculations for Voltage-Loop Compensation Components (See graph at right ===> )
B217: Voltage-Sense Divider Gain | C217: HV = | D217: =KR -> 0.007673987827
B218: Voltage Amplifier Output Impedance at double fLINE | C218: ZO = | D218: =(3.2*0.02)/(VRIPPLE*Hv*gMV) /kΩ -> 12.93592542 | E218: kΩ
B219: Calculated Pole Capacitance for the Voltage-Loop | C219: CPV (tgt) = | D219: =1/(2*PI()*2*fLINE_min*ZO*kΩ) /uF -> 0.1308864761 | E219: µF
B220: è Select a Standard Value | C220: CPV = | D220: 0.15 | E220: µF | G220: Check the Voltage-Loop Frequency Response graph to the right (è) for effects of CPV on gain and phase.
B221: Calculated Voltage-Loop Crossover Frequency | C221: fCV = | D221: =(Hv*gMV*(POUT_nom/(η_VIN_min*3.2))*(1/(VOUT_nom*2*PI()*COUT*uF))*(1/(2*PI()*CPV*uF)))^0.5 -> 8.780709548 | E221: Hz
B222: Calculated Voltage-Loop Zero Compensation Resistor | C222: RZV (tgt) = | D222: =1/(2*PI()*fCV*CPV*uF) /kΩ -> 120.8368126 | E222: kΩ
B223: è Select a Standard Value | C223: RZV = | D223: 120 | E223: kΩ | G223: Check the Voltage-Loop Frequency Response graph to the right (è) for effects of RZV on gain and phase.
B224: Calculated Voltage-Loop Zero Compensation Capacitor | C224: CZV (tgt) = | D224: =1/(2*PI()*(fCV/10)*(RZV*kΩ)) /uF -> 1.510460157 | E224: µF
B225: è Select a Standard Value | C225: CZV = | D225: 1.5 | E225: µF | G225: Check the Voltage-Loop Frequency Response graph to the right (è) for effects of CZV on gain and phase.
B227: Step 10: Calculations for RSYNTH and IMO Resistors
B229: Calculated Current Synthesis Programming Resistor | C229: RSYN (tgt) = | D229: =10*NCT*L_AVG*KR / RSx -> 300.4874752 | E229: kΩ
B230: è Select a Standard Value | C230: RSYN = | D230: 300 | E230: kΩ | F230: use ±1% | G230: =IF(OR(RSYN<0.95*RSYN_tgt,RSYN>1.05*RSYN_tgt), "Alert: Excessive deviation from recommended value can significantly under-state or over-state the current measurement, especially at narrow duty-cycles.", "") -> 
B232: Quantized Voltage-Feed-Forward gain factor at VIN(min) for IIMO | C232: kVFF = | D232: =IF( (VIN_min*1.4142*KR) < 0.95*1, 0.398, IF( (VIN_min*1.4142*KR) < 0.95*1.2, 0.6, IF( (VIN_min*1.4142*KR) < 0.95*1.4, 0.839, IF( (VIN_min*1.4142*KR) < 0.95*1.65, 1.156, IF( (VIN_min*1.4142*KR) < 0.95*1.95, 1.604, IF( (VIN_min*1.4142*KR) < 0.95*2.25, 2.199, IF( (VIN_min*1.4142*KR) < 0.95*2.6, 2.922, 3.857 ))))))) -> 0.398
B233: Maximum CSx Voltage at IIN_peak_extra at VIN(min) | C233: VCSx (max) = | D233: =(0.5*IIN_peak_extra/NCT)*RSx -> 3.197930898 | E233: V
B234: Maximum output current of Multiplier | C234: IIMO (max) = | D234: =(17*uA)*(VIN_min*1.4142*KR)*(5-1)/kVFF /uA -> 157.6074365 | E234: µA
B235: Multiplier Resistor | C235: RIMO (tgt) = | D235: =VCSx_max/(IIMO_max*uA) /kΩ -> 20.29048228 | E235: kΩ
B236: è Select a Standard Value | C236: RIMO = | D236: 20.5 | E236: kΩ | F236: use ±1% | G236: =IF(RIMO<0.98*RIMO_tgt, "Alert: Rimo value lower than target may not provide full output power in worst-case conditions.", IF(RIMO>1.05*RIMO_tgt, "Alert: Rimo significantly higher than target may allow excess output power.", "")) -> 
B238: Step 11: Calculations for Current-Loop Compensation Components (See graph at right ===> ) | J238: Current-Loop Graph Axes Can be Adjusted Based on Individual Need
B240: Current-Loop Power Stage Gain at Loop Crossover (set at fSW/10) | C240: GPSC = | D240: =(VOUT_nom*RSx/NCT)/(4*kSYNC*2*PI()*(fSW*kHz/10)*(L_AVG*uH)) -> 0.3972418726
B241: Current-Loop Zero Resistor | C241: RZCx (tgt) = | D241: =1/(gMC*GPSC) /kΩ -> 25.17357985 | E241: kΩ
B242: è Select a Standard Value | C242: RZC1=RZC2 = | D242: 25 | E242: kΩ | G242: Check the Current-Loop Frequency Response graph to the right (è) for effects of RZC on gain and phase.
B243: Current-Loop Zero Capacitor (set zero at fSW/10) | C243: CZCx (tgt) = | D243: =1/(2*PI()*(fSW*kHz/10)*(RZCx*kΩ)) /pF -> 636.6197724 | E243: pF
B244: è Select a Standard Value | C244: CZC1=CZC2 = | D244: 820 | E244: pF | G244: Check the Current-Loop Frequency Response graph to the right (è) for effects of CZC on gain and phase.
B245: Current-Loop Pole Capacitor (set pole at fSW/2) | C245: CPCx (tgt) = | D245: =1/(2*PI()*(fSW*kHz/2)*(RZCx*kΩ)) /pF -> 127.3239545 | E245: pF
B246: è Select a Standard Value | C246: CPC1=CPC2 = | D246: 120 | E246: pF | G246: Check the Current-Loop Frequency Response graph to the right (è) for effects of CPC on gain and phase.
B248: Step 12: Calculations for Soft-Start Capacitor
B250: è Enter the target Soft-Start time (in seconds) | C250: tSS (tgt) = | D250: 0.5 | E250: s
... 6 more rows

Sheet Voltage-Loop Calculations (hidden)
A1: f (Hz) | B1: ω=2πf (rad) | C1: Gcv_numerator | D1: Gcv_denominator | E1: Gcv | F1: GcvdB | G1: Comp_Phase | H1: Gps | I1: GpsdB | J1: Phase PS | K1: Gain | L1: Phase | M1: Frequency | N1: MathCAD Loop | O1: MathCAD Loop Phase
A2: 1 | B2: =2*PI()*A2 -> 6.283185307 | C2: =IMPRODUCT(COMPLEX(Hv*gMV,0),COMPLEX(1,B2*(RZV*kΩ)*(CZV*uF))) -> 5.37179147922731E-07+6.07535303319246E-07i | D2: =IMPRODUCT(COMPLEX(0,B2*(CZV+CPV)*uF),COMPLEX(1,B2*(RZV*kΩ)*CZV*CPV/(CZV+CPV)*uF)) -> -1.06591727531765E-06+0.0000103672557568463i | E2: =IMDIV(C2,D2) -> 0.0527166926855818-0.0572350866295602i | F2: =20*LOG(IMABS(E2)) -> -22.17892679 | G2: =(180/PI())*IMARGUMENT(E2) -> -47.35320722 | H2: =IMDIV((((POUT_nom/η_VIN_min)/VOUT_nom)/3.3),COMPLEX(0,B2*COUT*uF)) -> -131.173843267175i | I2: =20*LOG(IMABS(H2)) -> 42.35694486 | J2: =180/PI()*IMARGUMENT(H2) -> -90 | K2: =F2+I2 -> 20.17801808 | L2: =G2+J2+180 -> 42.64679278 | M2: =A2 -> 1 | N2: 23.3 | O2: 38.407
A3: =1+A2 -> 2 | B3: =2*PI()*A3 -> 12.56637061 | C3: 5.37179147922731E-07+1.21507060663849E-06i | D3: -4.26366910127059E-06+0.0000207345115136926i | E3: 0.0511126992662793-0.0364178719121618i | F3: -24.04639442 | G3: =180/PI()*IMARGUMENT(E3) -> -35.46992695 | H3: =IMDIV((POUT_nom/(η_VIN_min*3.3*VOUT_nom)),COMPLEX(0,B3*COUT*uF)) -> -65.5869216335873i | I3: 36.33634495 | J3: -90 | K3: 12.28995053 | L3: 54.53007305
A4: =1+A3 -> 3 | B4: 18.84955592 | C4: 5.37179147922731E-07+1.82260590995773E-06i | D4: -9.59325547785885E-06+0.0000311017672705389i | E4: 0.0486458156233733-0.0322763293929431i | F4: -24.67477882 | G4: -33.56413547 | H4: -43.7246144223915i | I4: 32.81451977 | J4: -90 | K4: 8.139740948 | L4: 56.43586453
A5: 4 | B5: 25.13274123 | C5: 5.37179147922731E-07+2.43014121327697E-06i | D5: -0.0000170546764050824+0.0000414690230273853i | E5: 0.0455669027846588-0.0316937278418397i | F5: -25.11331559 | G5: -34.82026312 | H5: -32.7934608167936i | I5: 30.31574504 | J5: -90 | K5: 5.202429451 | L5: 55.17973688
A6: 5 | B6: 31.41592654 | C6: 5.37179147922731E-07+3.03767651659622E-06i | D6: -0.0000266479318829413+0.0000518362787842316i | E6: 0.0421378895958865-0.0320251915936104i | F6: -25.52653613 | G6: -37.23517486 | H6: -26.2347686534349i | I6: 28.37754478 | J6: -90 | K6: 2.851008645 | L6: 52.76482514
A7: 6 | B7: 37.69911184 | C7: 5.37179147922731E-07+3.64521181991546E-06i | D7: -0.0000383730219114355+0.0000622035345410779i | E7: 0.0385886942430322-0.0324409854284355i | F7: -25.94909056 | G7: -40.05330517 | H7: -21.8623072111958i | I7: 26.79391986 | J7: -90 | K7: 0.8448292985 | L7: 49.94669483
A8: 7 | B8: 43.98229715 | C8: 5.37179147922731E-07+4.25274712323471E-06i | D8: -0.0000522299464905648+0.0000725707902979242i | E8: 0.0350952330657468-0.0326605412906518i | F8: -26.38576968 | G8: -42.94205629 | H8: -18.7391204667393i | I8: 25.45498406 | J8: -90 | K8: -0.9307856165 | L8: 47.05794371
A9: 8 | B9: 50.26548246 | C9: 5.37179147922731E-07+4.86028242655395E-06i | D9: -0.0000682187056203296+0.0000829380460547705i | E9: 0.0317759638539451-0.0326134313568346i | F9: -26.83327843 | G9: -45.74516382 | H9: -16.3967304083969i | I9: 24.29514512 | J9: -90 | K9: -2.538133309 | L9: 44.25483618
A10: 9 | B10: 56.54866776 | C10: 5.37179147922731E-07+5.46781772987318E-06i | D10: -0.0000863392993007297+0.0000933053018116169i | E10: 0.0286996629989683-0.032314218837298i | F10: -27.28651169 | G10: -48.39032728 | H10: -14.5748714741305i | I10: 23.27209467 | J10: -90 | K10: -4.014417012 | L10: 41.60967272
A11: 10 | B11: 62.83185307 | C11: 5.37179147922731E-07+6.07535303319246E-06i | D11: -0.000106591727531765+0.000103672557568463i | E11: 0.0258975046545651-0.0318082141036895i | F11: -27.74059581 | G11: -50.84832415 | H11: -13.1173843267175i | I11: 22.35694486 | J11: -90 | K11: -5.383650943 | L11: 39.15167585
A12: 11 | B12: 69.11503838 | C12: 5.37179147922731E-07+6.68288833651169E-06i | D12: -0.000128975990313436+0.000114039813325309i | E12: 0.0233749936424863-0.0311469477015039i | F12: -28.19151091 | G12: -53.11270245 | H12: -11.9248948424704i | I12: 21.52909116 | J12: -90 | K12: -6.662419747 | L12: 36.88729755
A13: 12 | B13: 75.39822369 | C13: 5.37179147922731E-07+7.29042363983092E-06i | D13: -0.000153492087645743+0.000124407069082156i | E13: 0.0211217245155734-0.0303776687802254i | F13: -28.63618757 | G13: -55.18894372 | H13: -10.9311536055979i | I13: 20.77331994 | J13: -90 | K13: -7.862867625 | L13: 34.81105628
A14: 13 | B14: 81.68140899 | C14: 5.37179147922731E-07+7.89795894315015E-06i | D14: -0.000180140019528682+0.000134774324839002i | E14: 0.0191185086575287-0.0295396595427583i | F14: -29.07241169 | G14: -57.08845296 | H14: -10.0902956359365i | I14: 20.07807782 | J14: -90 | K14: -8.994333872 | L14: 32.91154704
A15: 14 | B15: 87.9645943 | C15: 5.37179147922731E-07+8.50549424646943E-06i | D15: -0.000208919785962258+0.000145141580595848i | E15: 0.0173421707308173-0.0286637483762184i | F15: -29.49867295 | G15: -58.8251795 | H15: -9.36956023336962i | I15: 19.43438415 | J15: -90 | K15: -10.0642888 | L15: 31.1748205
A16: 15 | B16: 94.24777961 | C16: 5.37179147922731E-07+9.11302954978866E-06i | D16: -0.000239831386946471+0.000155508836352695i | E16: 0.0157685582317277-0.0277731763678607i | F16: -29.9140121 | G16: -60.41372977 | H16: -8.74492288447831i | I16: 18.83511968 | J16: -90 | K16: -11.07889242 | L16: 29.58627023
A17: 16 | B17: 100.5309649 | C17: 5.37179147922731E-07+9.72056485310789E-06i | D17: -0.000272874822481318+0.000165876092109541i | E17: 0.0143742955449213-0.0268849020755332i | F17: -30.31788766 | G17: -61.86834359 | H17: -8.19836520419843i | I17: 18.27454521 | J17: -90 | K17: -12.04334245 | L17: 28.13165641
A18: 17 | B18: 106.8141502 | C18: 5.37179147922731E-07+0.0000103281001564271i | D18: -0.0003080500925668+0.000176243347866387i | E18: 0.0131377090362653-0.0260109200611381i | F18: -30.71006707 | G18: -63.20237299 | H18: -7.7161084274809i | I18: 17.74796644 | J18: -90 | K18: -12.96210063 | L18: 26.79762701 | M18: =A18 -> 17 | N18: -9.479 | O18: 30.9
A19: 18 | B19: 113.0973355 | C19: 5.37179147922731E-07+0.0000109356354597464i | D19: -0.000345357197202919+0.000186610603623234i | E19: 0.0120392323718104-0.0251594207679916i | F19: -31.09054138 | G19: -64.42805223 | H19: -7.28743573706528i | I19: 17.25149476 | J19: -90 | K19: -13.83904662 | L19: 25.57194777
A20: 19 | B20: 119.3805208 | C20: 5.37179147922731E-07+0.0000115431707630656i | D20: -0.000384796136389671+0.00019697785938008i | E20: 0.0110615022648673-0.0243357425915556i | F20: -31.45945983 | G20: -65.55643335 | H20: -6.90388648774604i | I20: 16.78187284 | J20: -90 | K20: -14.67758699 | L20: 24.44356665
A21: 20 | B21: 125.6637061 | C21: 5.37179147922731E-07+0.0000121507060663849i | D21: -0.000426366910127059+0.000207345115136926i | E21: 0.0101892811049715-0.0235431225174597i | F21: -31.81708065 | G21: -66.59741272 | H21: -6.55869216335873i | I21: 16.33634495 | J21: -90 | K21: -15.4807357 | L21: 23.40258728
A22: 21 | B22: 131.9468915 | C22: 5.37179147922731E-07+0.0000127582413697041i | D22: -0.000470069518415084+0.000217712370893773i | E22: 0.00940929172586183-0.0227832729842708i | F22: -32.16373444 | G22: -67.55980444 | H22: -6.24637348891306i | I22: 15.91255897 | J22: -90 | K22: -16.25117547 | L22: 22.44019556
A23: 22 | B23: 138.2300768 | C23: 5.37179147922731E-07+0.0000133657766730234i | D23: -0.000515903961253743+0.000228079626650619i | E23: 0.00871001563611278-0.0220568175731083i | F23: -32.49979729 | G23: -68.45143456 | H23: -5.96244742123523i | I23: 15.50849125 | J23: -90 | K23: -16.99130604 | L23: 21.54856544
A24: 23 | B24: 144.5132621 | C24: 5.37179147922731E-07+0.0000139733119763426i | D24: -0.000563870238643036+0.000238446882407465i | E24: 0.00808148429721134-0.021363615979161i | F24: -32.82567113 | G24: -69.27924147 | H24: -5.70321057683369i | I24: 15.12238814 | J24: -90 | K24: -17.70328298 | L24: 20.72075853
A25: 24 | B25: 150.7964474 | C25: 5.37179147922731E-07+0.0000145808472796618i | D25: -0.000613968350582968+0.000248814138164312i | E25: 0.00751507949700954-0.0207030040543749i | F25: -33.14176965 | G25: -70.04937416 | H25: -5.46557680279895i | I25: 14.75272003 | J25: -90 | K25: -18.38904962 | L25: 19.95062584
A26: 25 | B26: 157.0796327 | C26: 5.37179147922731E-07+0.0000151883825829811i | D26: -0.000666198297073532+0.000259181393921158i | E26: 0.00700335066544504-0.0200739696485839i | F26: -33.44850825 | G26: -70.76728406 | H26: -5.24695373068698i | I26: 14.39814469 | J26: -90 | K26: -19.05036356 | L26: 19.23271594
A27: 26 | B27: 163.362818 | C27: 5.37179147922731E-07+0.0000157959178863003i | D27: -0.000720560078114731+0.000269548649678004i | E27: 0.00653985216384579-0.0194752804001549i | F27: -33.74629702 | G27: -71.43780867 | H27: -5.04514781796825i | I27: 14.0574779 | J27: -90 | K27: -19.68881912 | L27: 18.56219133
A28: 27 | B28: 169.6460033 | C28: 5.37179147922731E-07+0.0000164034531896196i | D28: -0.000777053693706569+0.000279915905434851i | E28: 0.00611900086659232-0.0189055758188549i | F28: -34.03553594 | G28: -72.06524641 | H28: -4.85829049137685i | I28: 13.72966958 | J28: -90 | K28: -20.30586636 | L28: 17.93475359
A29: 28 | B29: 175.9291886 | C29: 5.37179147922731E-07+0.0000170109884929388i | D29: -0.000835679143849039+0.000290283161191697i | E29: 0.00573595292119234-0.0183634329748219i | F29: -34.3166117 | G29: -72.65342272 | H29: -4.68478011668482i | I29: 13.41378424 | J29: -90 | K29: -20.90282747 | L29: 17.34657728
A30: 29 | B30: 182.2123739 | C30: 5.37179147922731E-07+0.000017618523796258i | D30: -0.000896436428542144+0.000300650416948543i | E30: 0.00538649790115468-0.0178474127634487i | F30: -34.58989577 | G30: -73.20574821 | H30: -4.52323597473016i | I30: 13.1089849 | J30: -90 | K30: -21.48091087 | L30: 16.79425179
A31: 30 | B31: 188.4955592 | C31: 5.37179147922731E-07+0.0000182260590995773i | D31: -0.000959325547785885+0.000311017672705389i | E31: 0.00506696833361077-0.0173560919327273i | F31: -34.85574325 | G31: -73.72526946 | H31: -4.37246144223915i | I31: 12.81451977 | J31: -90 | K31: -22.04122348 | L31: 16.27473054
A32: 31 | B32: 194.7787445 | C32: 5.37179147922731E-07+0.0000188335944028966i | D32: -0.00102434650158026+0.000321384928462236i | E32: 0.00477416259387537-0.0168880847179244i | F32: -35.11449236 | G32: -74.21471325 | H32: -4.23141429894113i | I32: 12.52971099 | J32: -90 | K32: -22.58478137 | L32: 15.78528675
A33: 32 | B33: 201.0619298 | C33: 5.37179147922731E-07+0.0000194411297062158i | D33: -0.00109149928992527+0.000331752184219082i | E33: 0.00450527929408357-0.016442056926226i | F33: -35.36646442 | G33: -74.67652512 | H33: -4.09918260209922i | I33: 12.2539453 | J33: -90 | K33: -23.11251912 | L33: 15.32347488
A34: 33 | B34: 207.3451151 | C34: =IMPRODUCT(COMPLEX(Hv*gMV,0),COMPLEX(1,B34*(RZV*kΩ)*(CZV*uF))) -> 5.37179147922731E-07+0.000020048665009535i | D34: =IMPRODUCT(COMPLEX(0,B34*(CZV+CPV)*uF),COMPLEX(1,B34*(RZV*kΩ)*CZV*CPV/(CZV+CPV)*uF)) -> -0.00116078391282092+0.000342119439975928i | E34: =IMDIV(C34,D34) -> 0.00425786148342689-0.0160167345687519i | F34: =20*LOG(IMABS(E34)) -> -35.61196408 | G34: -75.11290289 | H34: -3.97496494749015i | I34: =20*LOG(IMABS(H34)) -> 11.98666607 | J34: =180/PI()*IMARGUMENT(H34) -> -90 | K34: =F34+I34 -> -23.62529802 | L34: =G34+J34+180 -> 14.88709711
A35: 34 | B35: 213.6283004 | C35: 5.37179147922731E-07+0.0000206562003128543i | D35: -0.00123220037026721+0.000352486695732775i | E35: 0.00402974918392386-0.0156109085847862i | F35: -35.85127979 | G35: =180/PI()*IMARGUMENT(E35) -> -75.52582577 | H35: =IMDIV((POUT_nom/(η_VIN_min*3.3*VOUT_nom)),COMPLEX(0,B35*COUT*uF)) -> -3.85805421374043i | I35: 11.72736652 | J35: -90 | K35: -24.12391327 | L35: 14.47417423
A36: 35 | B36: 219.9114858 | C36: 5.37179147922731E-07+0.0000212637356161735i | D36: -0.00130574866226412+0.000362853951489621i | E36: 0.00381903898673579-0.0152234367940885i | F36: -36.08468436 | G36: -75.91707976 | H36: -3.74782409334785i | I36: 11.47558398 | J36: -90 | K36: -24.60910039 | L36: 14.08292024
A37: 36 | B37: 226.1946711 | C37: 5.37179147922731E-07+0.0000218712709194928i | D37: -0.00138142878881168+0.000373221207246467i | E37: 0.00362404961914136-0.0148532439107239i | F37: -36.31243568 | G37: -76.28827974 | H37: -3.64371786853264i | I37: 11.23089485 | J37: -90 | K37: -25.08154083 | L37: 13.71172026
A38: 37 | B38: 232.4778564 | C38: 5.37179147922731E-07+0.000022478806222812i | D38: -0.00145924074990986+0.000383588463003314i | E38: 0.00344329255701759-0.014499320228346i | F38: -36.53477741 | G38: -76.64088877 | H38: -3.54523900722094i | I38: 10.99291038 | J38: -90 | K38: -25.54186703 | L38: 13.35911123
A39: 38 | B39: 238.7610417 | C39: 5.37179147922731E-07+0.0000230863415261313i | D39: -0.00153918454555869+0.00039395571876016i | E39: 0.00327544690113771-0.0141607194217386i | F39: -36.75193976 | G39: -76.97623492 | H39: -3.45194324387302i | I39: 10.76127293 | J39: -90 | K39: -25.99066683 | L39: 13.02376508
A40: 39 | B40: 245.044227 | C40: 5.37179147922731E-07+0.0000236938768294505i | D40: -0.00162126017575814+0.000404322974517006i | E40: 0.00311933785875619-0.0138365557874662i | F40: -36.9641402 | G40: -77.29552597 | H40: -3.3634318786455i | I40: 10.53565272 | J40: -90 | K40: -26.42848748 | L40: 12.70447403
A41: 40 | B41: 251.3274123 | C41: 5.37179147922731E-07+0.0000243014121327697i | D41: -0.00170546764050824+0.000414690230273853i | E41: 0.002973918276644-0.0135260011564559i | F41: -37.17158423 | G41: -77.59986242 | H41: -3.27934608167936i | I41: 10.31574504 | J41: -90 | K41: -26.85583919 | L41: 12.40013758
A42: 41 | B42: 257.6105976 | C42: 5.37179147922731E-07+0.000024908947436089i | D42: -0.00179180693980897+0.000425057486030699i | E42: 0.00283825276015535-0.0132282816449325i | F42: -37.37446604 | G42: -77.89024873 | H42: -3.19936203090671i | I42: 10.10126773 | J42: -90 | K42: -27.27319832 | L42: 12.10975127
A43: 42 | B43: 263.8937829 | C43: 5.37179147922731E-07+0.0000255164827394082i | D43: -0.00188027807366033+0.000435424741787545i | E43: 0.00271150398723866-0.01294267436121i | F43: -37.57296925 | G43: -78.16760338 | H43: -3.12318674445654i | I43: 9.891959055 | J43: -90 | K43: -27.6810102 | L43: 11.83239662
A44: 43 | B44: 270.1769682 | C44: 5.37179147922731E-07+0.0000261240180427275i | D44: -0.00197088104206234+0.000445791997544392i | E44: 0.0025929208886246-0.0126685041498934i | F44: -37.76726751 | G44: -78.43276762 | H44: -3.05055449458546i | I44: 9.687575751 | J44: -90 | K44: -28.07969176 | L44: 11.56723238
A45: 44 | B45: 276.4601535 | C45: 5.37179147922731E-07+0.0000267315533460467i | D45: -0.00206361584501497+0.000456159253301238i | E45: 0.0024818284175776-0.0124051404286814i | F45: -37.95752513 | G45: -78.68651324 | H45: -2.98122371061761i | I45: 9.487891333 | J45: -90 | K45: -28.46963379 | L45: 11.31348676
A46: 45 | B46: 282.7433388 | C46: 5.37179147922731E-07+0.0000273390886493659i | D46: -0.00215848248251824+0.000466526509058084i | E46: 0.00237761867621087-0.0121519941537261i | F46: -38.14389767 | G46: -78.92954947 | H46: -2.9149742948261i | I46: 9.292694587 | J46: -90 | K46: -28.85120308 | L46: 11.07045053
A47: 46 | B47: 289.0265241 | C47: 5.37179147922731E-07+0.0000279466239526852i | D47: -0.00225548095457215+0.000476893764814931i | E47: 0.00227974320182995-0.0119085149355421i | F47: -38.32653249 | G47: -79.16252902 | H47: -2.85160528841685i | I47: 9.101788229 | J47: -90 | K47: -29.22474426 | L47: 10.83747098
A48: 47 | B48: 295.3097094 | C48: 5.37179147922731E-07+0.0000285541592560044i | D48: -0.00235461126117669+0.000487261020571777i | E48: 0.00218770624726689-0.0116741883174011i | F48: -38.50556925 | G48: -79.38605355 | H48: -2.79093283547181i | I48: 8.914987704 | J48: -90 | K48: -29.59058154 | L48: 10.61394645
A49: 48 | B49: 301.5928947 | C49: 5.37179147922731E-07+0.0000291616945593237i | D49: -0.00245587340233187+0.000497628276328623i | E49: 0.0021010589146939-0.011448533220989i | F49: -38.68114037 | G49: -79.60067843 | H49: -2.73278840139947i | I49: 8.732120115 | J49: -90 | K49: -29.94902025 | L49: 10.39932157
A50: 49 | B50: 307.8760801 | C50: 5.37179147922731E-07+0.0000297692298626429i | D50: -0.00255926737803768+0.000507995532085469i | E50: 0.00201939402379193-0.011231099559076i | F50: -38.85337152 | G50: -79.80691705 | H50: -2.67701720953418i | I50: 8.553023262 | J50: -90 | K50: -30.30034826 | L50: 10.19308295 | M50: =A50 -> 49 | N50: -26.447 | O50: 12.157
A51: 50 | B51: 314.1592654 | C51: 5.37179147922731E-07+0.0000303767651659622i | D51: -0.00266479318829413+0.000518362787842316i | E51: 0.00194234161309178-0.011021466011499i | F51: -39.02238202 | G51: -80.00524463 | H51: -2.62347686534349i | I51: 8.377544776 | J51: -90 | K51: -30.64483724 | L51: 9.994755369
A52: 51 | B52: 320.4424507 | C52: 5.37179147922731E-07+0.0000309843004692814i | D52: -0.00277245083310121+0.000528730043599162i | E52: 0.00186956498837814-0.0108192379584644i | F52: -39.18828523 | G52: -80.19610169 | H52: -2.57203614249363i | I52: 8.205541341 | J52: -90 | K52: -30.98274388 | L52: 9.803898308
A53: 52 | B53: 326.725636 | C53: 5.37179147922731E-07+0.0000315918357726006i | D53: -0.00288224031245893+0.000539097299356009i | E53: 0.00180075724473126-0.0106240455637255i | F53: -39.35118889 | G53: -80.37989707 | H53: -2.52257390898413i | I53: 8.03687799 | J53: -90 | K53: -31.3143109 | L53: 9.620102926
A54: 53 | B54: 333.0088213 | C54: 5.37179147922731E-07+0.0000321993710759199i | D54: -0.00299416162636728+0.000549464555112855i | E54: 0.00173563819947123-0.0104355419993542i | F54: -39.51119552 | G54: -80.55701071 | H54: -2.47497817485235i | I54: 7.871427471 | J54: -90 | K54: -31.63976805 | L54: 9.442989289
A55: 54 | B55: 339.2920066 | C55: 5.37179147922731E-07+0.0000328069063792392i | D55: -0.00310821477482627+0.000559831810869701i | E55: 0.00167395168229748-0.0102534018034232i | F55: -39.66840268 | G55: -80.72779611 | H55: -2.42914524568842i | I55: 7.709069666 | J55: -90 | K55: -31.95933301 | L55: 9.272203891
A56: 55 | B56: 345.5751919 | C56: 5.37179147922731E-07+0.0000334144416825584i | D56: -0.00322439975783589+0.000570199066626547i | E56: 0.00161546313655217-0.0100773193618322i | F56: -39.82290329 | G56: -80.89258257 | H56: -2.38497896849409i | I56: 7.549691073 | J56: -90 | K56: -32.27321221 | L56: 9.10741743
A57: 56 | B57: 351.8583772 | C57: 5.37179147922731E-07+0.0000340219769858776i | D57: -0.00334271657539616+0.000580566322383394i | E57: 0.00155995749200836-0.00990700750563727i | F57: -39.97478588 | G57: -81.0516772 | H57: -2.34239005834241i | I57: 7.393184323 | J57: -90 | K57: -32.58160156 | L57: 8.948322796
A58: 57 | B58: 358.1415625 | C58: 5.37179147922731E-07+0.0000346295122891969i | D58: -0.00346316522750705+0.00059093357814024i | E58: 0.00150723727507922-0.00974219621551664i | F58: -40.12413491 | G58: -81.20536675 | H58: -2.30129549591535i | I58: 7.239447749 | J58: -90 | K58: -32.88468716 | L58: 8.794633254
A59: 58 | B59: 364.4247478 | C59: 5.37179147922731E-07+0.0000352370475925161i | D59: -0.00358574571416858+0.000601300833897086i | E59: 0.00145712092701967-0.0095826314253791i | F59: -40.27103093 | G59: -81.3539192 | H59: -2.26161798736508i | I59: 7.088384992 | J59: -90 | K59: -33.18264594 | L59: 8.646080805
A60: 59 | B60: 370.7079331 | C60: 5.37179147922731E-07+0.0000358445828958354i | D60: -0.00371045803538075+0.000611668089653933i | E60: 0.00140944130467772-0.00942807391754643i | F60: -40.41555086 | G60: -81.49758531 | H60: -2.22328547910465i | I60: 6.93990463 | J60: -90 | K60: -33.47564623 | L60: 8.50241469
A61: 60 | B61: 376.9911184 | C61: 5.37179147922731E-07+0.0000364521181991546i | D61: -0.00383730219114355+0.000622035345410779i | E61: 0.00136404434175506-0.00927829830239801i | F61: -40.55776816 | G61: -81.63659995 | H61: -2.18623072111958i | I61: 6.793919855 | J61: -90 | K61: -33.7638483 | L61: 8.363400049
A62: 61 | B62: 383.2743037 | C62: 5.37179147922731E-07+0.0000370596535024739i | D62: -0.00396627818145698+0.000632402601167625i | E62: 0.00132078785144997-0.0091330920758361i | F62: -40.69775305 | G62: -81.77118331 | H62: -2.15039087323237i | I62: 6.650348163 | J62: -90 | K62: -34.04740488 | L62: 8.228816688
A63: 62 | B63: 389.557489 | C63: 5.37179147922731E-07+0.0000376671888057931i | D63: -0.00409738600632105+0.000642769856924472i | E63: 0.00127954045385098-0.00899225474839367i | F63: -40.83557268 | G63: -81.90154203 | H63: -2.11570714947056i | I63: 6.509111073 | J63: -90 | K63: -34.32646161 | L63: 8.098457965
A64: 63 | B64: 395.8406744 | C64: 5.37179147922731E-07+0.0000382747241091123i | D64: -0.00423062566573575+0.000653137112681318i | E64: 0.00124018061359505-0.00885559704026188i | F64: -40.97129132 | G64: -82.02787023 | H64: -2.08212449630436i | I64: 6.370133874 | J64: -90 | K64: -34.60115745 | L64: 7.972129773
A65: 64 | B65: 402.1238597 | C65: 5.37179147922731E-07+0.0000388822594124316i | D65: -0.00436599715970109+0.000663504368438164i | E65: 0.00120259577514842-0.00872294013694748i | F65: -41.10497049 | G65: -82.15035039 | H65: -2.0495913010496i | I65: 6.233345383 | J65: -90 | K65: -34.8716251 | L65: 7.849649611
A66: 65 | B66: 408.407045 | C66: =IMPRODUCT(COMPLEX(Hv*gMV,0),COMPLEX(1,B66*(RZV*kΩ)*(CZV*uF))) -> 5.37179147922731E-07+0.0000394897947157509i | D66: =IMPRODUCT(COMPLEX(0,B66*(CZV+CPV)*uF),COMPLEX(1,B66*(RZV*kΩ)*CZV*CPV/(CZV+CPV)*uF)) -> -0.00450350048821707+0.00067387162419501i | E66: =IMDIV(C66,D66) -> 0.00116668158465941-0.00859411500068489i | F66: =20*LOG(IMABS(E66)) -> -41.2366691 | G66: -82.26915426 | H66: -2.01805912718731i | I66: =20*LOG(IMABS(H66)) -> 6.09867773 | J66: =180/PI()*IMARGUMENT(H66) -> -90 | K66: =F66+I66 -> -35.13799137 | L66: =G66+J66+180 -> 7.730845742
A67: 66 | B67: =2*PI()*A67 -> 414.6902303 | C67: 5.37179147922731E-07+0.0000400973300190701i | D67: -0.00464313565128368+0.000684238879951857i | E67: 0.00113234118870636-0.00846896173311561i | F67: -41.36644364 | G67: =180/PI()*IMARGUMENT(E67) -> -82.38444359 | H67: =IMDIV((POUT_nom/(η_VIN_min*3.3*VOUT_nom)),COMPLEX(0,B67*COUT*uF)) -> -1.98748247374507i | I67: 5.966066152 | J67: -90 | K67: -35.40037749 | L67: 7.615556411
A68: =1+A67 -> 67 | B68: 420.9734156 | C68: 5.37179147922731E-07+0.0000407048653223893i | D68: -0.00478490264890093+0.000694606135708703i | E68: 0.00109948460145216-0.00834732898511064i | F68: -41.49434827 | G68: -82.49637086 | H68: -1.95781855622649i | I68: 5.835448809 | J68: -90 | K68: -35.65889946 | L68: 7.503629142
A69: 68 | B69: 427.2566009 | C69: 5.37179147922731E-07+0.0000413124006257085i | D69: -0.00492880148106882+0.00070497339146555i | E69: 0.00106802813274741-0.00822907340994986i | F69: -41.62043494 | G69: -82.60507992 | H69: -1.92902710687022i | I69: 5.706766609 | J69: -90 | K69: -35.91366833 | L69: 7.394920084
A70: 69 | B70: 433.5397862 | C70: 5.37179147922731E-07+0.0000419199359290278i | D70: -0.00507483214778733+0.000715340647222396i | E70: 0.00103789387061858-0.00811405915638512i | F70: -41.74475352 | G70: -82.71070658 | H70: -1.90107019227789i | I70: 5.579963048 | J70: -90 | K70: -36.16479047 | L70: 7.289293416
A71: 70 | B71: 439.8229715 | C71: 5.37179147922731E-07+0.000042527471232347i | D71: -0.00522299464905648+0.000725707902979242i | E71: 0.0010090092123555-0.00800215739840207i | F71: -41.8673519 | G71: -82.8133792 | H71: -1.87391204667393i | I71: 5.454984063 | J71: -90 | K71: -36.41236784 | L71: 7.186620797
A72: 71 | B72: 446.1061568 | C72: 5.37179147922731E-07+0.0000431350065356663i | D72: -0.00537328898487627+0.000736075158736088i | E72: 0.000981306439090357-0.0078932458987632i | F72: -41.98827611 | G72: -82.91321914 | H72: -1.84751891925598i | I72: 5.331777888 | J72: -90 | K72: -36.65649822 | L72: 7.086780865
A73: 72 | B73: 452.3893421 | C73: 5.37179147922731E-07+0.0000437425418389855i | D73: -0.0055257151552467+0.000746442414492935i | E73: 0.000954722329351681-0.00778720860365681i | F73: -42.10757037 | G73: -83.01034123 | H73: -1.82185893426632i | I73: 5.210294934 | J73: -90 | K73: -36.89727543 | L73: 6.989658769
A74: 73 | B74: 458.6725274 | C74: 5.37179147922731E-07+0.0000443500771423048i | D74: -0.00568027316016776+0.000756809670249781i | E74: 0.000929197807593768-0.00768393526600293i | F74: -42.22527722 | G74: -83.10485426 | H74: -1.79690196256404i | I74: 5.09048766 | J74: -90 | K74: -37.13478956 | L74: 6.895145742
A75: 74 | B75: 464.9557127 | C75: 5.37179147922731E-07+0.000044957612445624i | D75: -0.00583696299963945+0.000767176926006627i | E75: 0.000904677624154532-0.00758332109517095i | F75: -42.3414376 | G75: -83.19686129 | H75: -1.77261950361047i | I75: 4.972310468 | J75: -90 | K75: -37.36912713 | L75: 6.803138709
A76: 75 | B76: 471.238898 | C76: 5.37179147922731E-07+0.0000455651477489433i | D76: -0.00599578467366179+0.000777544181763474i | E76: 0.000881110063491568-0.00748526643105292i | F76: -42.4560909 | G76: -83.28646008 | H76: -1.74898457689566i | I76: 4.855719595 | J76: -90 | K76: -37.6003713 | L76: 6.713539917
A77: 76 | B77: 477.5220833 | C77: 5.37179147922731E-07+0.0000461726830522625i | D77: -0.00615673818223475+0.00078791143752032i | E77: 0.000858446677894602-0.00738967644060738i | F77: -42.56927505 | G77: -83.3737434 | H77: -1.72597162193651i | I77: 4.740673017 | J77: -90 | K77: -37.82860203 | L77: 6.626256604
A78: 77 | B78: 483.8052687 | C78: 5.37179147922731E-07+0.0000467802183555818i | D78: -0.00631982352535835+0.000798278693277166i | E78: 0.000836642044178936-0.00729646083514638i | F78: -42.6810266 | G78: -83.45879932 | H78: -1.7035564060672i | I78: 4.627130359 | J78: -90 | K78: -38.05389624 | L78: 6.541200679
A79: 78 | B79: 490.088454 | C79: 5.37179147922731E-07+0.000047387753658901i | D79: -0.00648504070303259+0.000808645949034013i | E79: 0.000815653541134452-0.00720553360678152i | F79: -42.79138078 | G79: -83.54171156 | H79: -1.68171593932275i | I79: 4.515052809 | J79: -90 | K79: -38.27632797 | L79: 6.45828844
A80: 79 | B80: 496.3716393 | C80: 5.37179147922731E-07+0.0000479952889622202i | D80: -0.00665238971525746+0.000819013204790859i | E80: 0.000795441145742735-0.00711681278257623i | F80: -42.90037156 | G80: -83.6225597 | H80: -1.66042839578702i | I80: 4.404403037 | J80: -90 | K80: -38.49596852 | L80: 6.377440304
A81: 80 | B81: 502.6548246 | C81: 5.37179147922731E-07+0.0000486028242655395i | D81: -0.00682187056203296+0.000829380460547705i | E81: 0.000775967246385176-0.00703022019507073i | F81: -43.00803169 | G81: -83.70141944 | H81: -1.63967304083969i | I81: 4.295145123 | J81: -90 | K81: -38.71288657 | L81: 6.298580555
A82: 81 | B82: 508.9380099 | C82: 5.37179147922731E-07+0.0000492103595688587i | D82: -0.00699348324335911+0.000839747716304552i | E82: 0.000757196471450922-0.00694568126795606i | F82: -43.1143928 | G82: -83.77836288 | H82: -1.61943016379228i | I82: 4.187244485 | J82: -90 | K82: -38.92714831 | L82: 6.221637117
A83: 82 | B83: 515.2211952 | C83: 5.37179147922731E-07+0.000049817894872178i | D83: -0.00716722775923589+0.000850114972061398i | E83: 0.000739095531918322-0.00686312481577322i | F83: -43.21948539 | G83: -83.85345866 | H83: -1.59968101545335i | I83: 4.080667815 | J83: -90 | K83: -39.13881757 | L83: 6.146541339
A84: 83 | B84: 521.5043805 | C84: 5.37179147922731E-07+0.0000504254301754972i | D84: -0.0073431041096633+0.000860482227818244i | E84: 0.000721633076629515-0.00678248285660427i | F84: -43.32333894 | G84: -83.92677221 | H84: -1.58040775020692i | I84: 3.975383015 | J84: -90 | K84: -39.34795592 | L84: 6.073227789
A85: 84 | B85: 527.7875658 | C85: 5.37179147922731E-07+0.0000510329654788164i | D85: -0.00752111229464135+0.000870849483575091i | E85: 0.000704779559107758-0.00670369043680625i | F85: -43.42598191 | G85: -83.99836592 | H85: -1.56159337222827i | I85: 3.871359142 | J85: -90 | K85: -39.55462277 | L85: 6.001634079
A86: 85 | B86: 534.0707511 | C86: 5.37179147922731E-07+0.0000516405007821357i | D86: -0.00770125231417003+0.000881216739331937i | E86: 0.000688507114882321-0.00662668546691451i | F86: -43.52744184 | G86: -84.06829932 | H86: -1.54322168549617i | I86: 3.768566349 | J86: -90 | K86: -39.75887549 | L86: 5.931700681
A87: 86 | B87: 540.3539364 | C87: 5.37179147922731E-07+0.0000522480360854549i | D87: -0.00788352416824934+0.000891583995088783i | E87: 0.000672789448388615-0.00655140856791161i | F87: -43.62774531 | G87: -84.13662923 | H87: -1.52527724729273i | I87: 3.666975838 | J87: -90 | K87: -39.96076948 | L87: 5.863370771
A88: 87 | B88: 546.6371217 | C88: 5.37179147922731E-07+0.0000528555713887742i | D88: -0.00806792785687929+0.000901951250845629i | E88: 0.000657601728602803-0.00647780292712211i | F88: -43.72691806 | G88: -84.20340992 | H88: -1.50774532491005i | I88: 3.56655981 | J88: -90 | K88: -40.16035825 | L88: 5.796590077
A89: 88 | B89: 552.920307 | C89: 5.37179147922731E-07+0.0000534631066920934i | D89: -0.00825446338005988+0.000912318506602476i | E89: 0.00064292049265187-0.00640581416305097i | F89: -43.82498497 | G89: -84.26869326 | H89: -1.49061185530881i | I89: 3.46729142 | J89: -90 | K89: -40.35769355 | L89: 5.731306738
A90: 89 | B90: 559.2034923 | C90: 5.37179147922731E-07+0.0000540706419954127i | D90: -0.00844313073779111+0.000922685762359322i | E90: 0.000628723556713219-0.00633539019853762i | F90: -43.92197013 | G90: -84.33252883 | H90: -1.47386340749635i | I90: 3.36914473 | J90: -90 | K90: -40.5528254 | L90: 5.667471171
A91: 90 | B91: 565.4866776 | C91: 5.37179147922731E-07+0.0000546781772987318i | D91: -0.00863392993007296+0.000933053018116168i | E91: 0.00061498993358321-0.00626648114164551i | F91: -44.01789685 | G91: -84.39496405 | H91: -1.45748714741305i | I91: 3.272094674 | J91: -90 | K91: -40.74580218 | L91: 5.60503595
A92: 91 | B92: 571.769863 | C92: 5.37179147922731E-07+0.0000552857126020514i | D92: -0.00882686095690546+0.000943420273873015i | E92: 0.000601699756352618-0.00619903917375255i | F92: -44.11278773 | G92: -84.45604431 | H92: -1.44147080513379i | I92: 3.176117016 | J92: -90 | K92: -40.93667071 | L92: 5.543955687 | M92: =A92 -> 91 | N92: -37.033 | O92: 6.641
A93: 92 | B93: 578.0530483 | C93: 5.37179147922731E-07+0.0000558932479053704i | D93: -0.00902192381828859+0.000953787529629861i | E93: 0.000588834207679448-0.00613301844434798i | F93: -44.20666463 | G93: -84.51581307 | H93: -1.42580264420842i | I93: 3.081188316 | J93: -90 | K93: -41.12547632 | L93: 5.484186929
A94: 93 | B94: 584.3362336 | C94: 5.37179147922731E-07+0.0000565007832086895i | D94: -0.00921911851422235+0.000964154785386707i | E94: 0.000576375454196809-0.00606837497207999i | F94: -44.29954876 | G94: -84.57431195 | H94: -1.41047143298037i | I94: 2.987285892 | J94: -90 | K94: -41.31226286 | L94: 5.425688053
A95: 94 | B95: 590.6194189 | C95: 5.37179147922731E-07+0.0000571083185120091i | D95: -0.00941844504470676+0.000974522041143554i | E95: 0.000564306585635677-0.00600506655163115i | F95: -44.39146065 | G95: -84.63158083 | H95: -1.3954664177359i | I95: 2.894387791 | J95: -90 | K95: -41.49707286 | L95: 5.368419171
A96: 95 | B96: 596.9026042 | C96: 5.37179147922731E-07+0.0000577158538153282i | D96: -0.00961990340974179+0.0009848892969004i | E96: 0.000552611558280712-0.00594305266603177i | F96: -44.48242024 | G96: -84.68765796 | H96: -1.38077729754921i | I96: 2.802472757 | J96: -90 | K96: -41.67994748 | L96: 5.312342043
A97: 96 | B97: 603.1857895 | C97: 5.37179147922731E-07+0.0000583233891186472i | D97: -0.00982349360932746+0.000995256552657246i | E97: 0.000541275142411529-0.00588229440405038i | F97: -44.57244685 | G97: -84.74258001 | H97: -1.36639420069974i | I97: 2.711520202 | J97: -90 | K97: -41.86092665 | L97: 5.25741999
A98: 97 | B98: 609.4689748 | C98: =IMPRODUCT(COMPLEX(Hv*gMV,0),COMPLEX(1,B98*(RZV*kΩ)*(CZV*uF))) -> 5.37179147922731E-07+0.0000589309244219669i | D98: -0.0100292156434637+0.00100562380841409i | E98: =IMDIV(C98,D98) -> 0.000530282873412705-0.00582275438232581i | F98: =20*LOG(IMABS(E98)) -> -44.66155923 | G98: -84.79638218 | H98: -1.35230766254819i | I98: =20*LOG(IMABS(H98)) -> 2.621510177 | J98: -90 | K98: -42.04004905 | L98: 5.20361782
A99: 98 | B99: 615.7521601 | C99: 5.37179147922731E-07+0.0000595384597252859i | D99: -0.0102370695121507+0.00101599106417094i | E99: =IMDIV(C99,D99) -> 0.000519621006263753-0.00576439667193086i | F99: =20*LOG(IMABS(E99)) -> -44.74977557 | G99: -84.84909825 | H99: -1.33850860476709i | I99: =20*LOG(IMABS(H99)) -> 2.532423349 | J99: -90 | K99: -42.21735222 | L99: 5.150901749
A100: 99 | B100: 622.0353454 | C100: 5.37179147922731E-07+0.000060145995028605i | D100: -0.0104470552153883+0.00102635831992779i | E100: =IMDIV(C100,D100) -> 0.000509276473145743-0.00570718672908175i | F100: =20*LOG(IMABS(E100)) -> -44.83711353 | G100: -84.90076067 | H100: -1.32498831583005i | I100: =20*LOG(IMABS(H100)) -> 2.444240971 | J100: -90 | K100: -42.39287256 | L100: 5.099239333
A101: 100 | B101: 628.3185307 | C101: 5.37179147922731E-07+0.0000607535303319246i | D101: -0.0106591727531765+0.00103672557568463i | E101: =IMDIV(C101,D101) -> 0.000499236843923547-0.0056510913297239i | F101: =20*LOG(IMABS(E101)) -> -44.92359027 | G101: -84.95140059 | H101: -1.31173843267175i | I101: =20*LOG(IMABS(H101)) -> 2.356944863 | J101: -90 | K101: -42.56664541 | L101: 5.048599406 | M101: =A101 -> 100 | N101: -38.66 | O101: 6.049

Sheet Current-Loop Calculations (hidden)
A1: Counter | B1: freq (Hz) | C1: ω=2πf (rad) | D1: Gpsc(f) | E1: Gcc(f) Numerator | F1: Gcc(f) Denominator | G1: Gc(f) | H1: Tc(f) | I1: Loop Gain | J1: Loop Phase | K1: Frequency | L1: MathCAD Gain | M1: MathCAD Phase
A2: 1 | B2: =10*10^A2 -> 100 | C2: =2*PI()*B2 -> 628.3185307 | D2: =IMDIV((VOUT_nom*RSx*(1/NCT)),(COMPLEX(0,C2*(L_AVG*uH)*4))) -> -39.7241872562662i | E2: =IMPRODUCT(gMC,COMPLEX(1,C2*(RZCx*kΩ)*(CZCx*pF))) -> 0.0001+1.28805298797182E-06i | F2: =IMPRODUCT((COMPLEX(0,C2*(CZCx+CPCx)*pF)),(COMPLEX(1,C2*(RZCx*kΩ)*CZCx*CPCx*pF/(CZCx+CPCx)))) -> -9.7116907306719E-10+5.90619418874881E-07i | G2: =IMDIV(E2,F2) -> 1.90243940123115-169.316897471491i | H2: =IMPRODUCT(G2,D2) -> -6725.97614080753-75.5728590182052i | I2: =20*LOG(IMABS(H2)) -> 76.5556547 | J2: =(180/PI())*IMARGUMENT(H2)+180 -> 0.6437465096 | K2: =B2 -> 100 | L2: 88.451 | M2: 0.277
A3: =A2+0.05 -> 1.05 | B3: =10*10^A3 -> 112.2018454 | C3: =2*PI()*B3 -> 704.9849866 | D3: -35.4042191587479i | E3: 0.0001+1.44521922262316E-06i | F3: -1.22262942523288E-09+6.62685887446718E-07i | G3: 1.90243806937207-150.90456560357i | H3: -5342.65831268444-67.354334343994i | I3: 74.55583819 | J3: 0.722283634
A4: =A3+0.05 -> 1.1 | B4: 125.8925412 | C4: =2*PI()*B4 -> 791.006165 | D4: -31.5540435391267i | E4: 0.0001+1.62156263829513E-06i | F4: -1.53919925263296E-09+7.43545795120692E-07i | G4: 1.9024363926635-134.494645635702i | H4: -4243.84990416836-60.0295607645232i | I4: 72.55606917 | J4: 0.8103988576
A5: 1.15 | B5: 141.2537545 | C5: 887.5235146 | D5: -28.1225709061598i | E5: 0.0001+1.81942320497371E-06i | F5: -1.93773705295423E-09+8.34272103744043E-07i | G5: 1.90243428181666-119.869387899467i | H5: -3371.03536068073-53.5013429846982i | I5: 70.55635995 | J5: 0.9092588733
A6: 1.2 | B6: 158.4893192 | C6: 995.817762 | D6: -25.0642677028477i | E6: 0.0001+2.04142641216573E-06i | F6: -2.43946641733922E-09+9.36068696310139E-07i | G6: 1.9024316244246-106.834724109741i | H6: -2677.73412504643-47.6830555209416i | I6: 68.55672599 | J6: 1.020171902
A7: 1.25 | B7: 177.827941 | C7: 1117.325906 | D7: -22.3385521037983i | E7: 0.0001+2.29051810754939E-06i | F7: -3.07110626400683E-09+1.05028635175436E-06i | G7: 1.90242827897675-95.2176921963789i | H7: -2127.02537833224-42.4974932336615i | I7: 66.55718675 | J7: 1.144604622
A8: 1.3 | B8: 199.5262315 | C8: 1253.660286 | D8: -19.9092555190598i | E8: 0.0001+2.57000358658323E-06i | F8: -3.86629371807844E-09+1.17844066896987E-06i | G8: 1.9024240673242-84.8641412024941i | H8: -1689.58187160603-37.8758468619665i | I8: 64.55776676 | J8: 1.284201018
A9: 1.35 | B9: 223.8721139 | C9: 1406.629976 | D9: -17.7441426589065i | E9: 0.0001+2.88359145176862E-06i | F9: -4.86737541114911E-09+1.32223217788415E-06i | G9: 1.90241876519426-75.6366857947409i | H9: -1342.10814298877-33.7567899665877i | I9: 62.55849682 | J9: 1.440803337
A10: 1.4 | B10: 251.1886432 | C10: 1578.264792 | D10: -15.8144837911294i | E10: 0.0001+3.23544282355178E-06i | F10: -6.12766259383769E-09+1.48356890445789E-06i | G10: 1.90241209025019-67.4128832431606i | H10: -1066.09994936226-30.0856651653102i | I10: 60.55941574 | J10: 1.616475321
A11: 1.45 | B11: 281.8382931 | C11: 1770.842222 | D11: -14.094673514945i | E11: 0.0001+3.63022655586395E-06i | F11: -7.71427015428283E-09+0.0000016645916890303i | G11: 1.90240368706007-60.0836086801848i | H11: -846.85884794692-26.8137588627393i | I11: 58.5605723 | J11: 1.813527877 | K11: =B11 -> 281.8382931 | L11: 70.452 | M11: 0.78
A12: 1.5 | B12: 316.227766 | C12: 1986.917653 | D12: -12.5618909928836i | E12: 0.0001+4.07318118897641E-06i | F12: -9.71169073067196E-09+1.86770259396967E-06i | G12: 1.90239310817605-53.5516070794401i | H12: -672.70945062566-23.8976548505206i | I12: 56.56202787 | J12: 2.034547324
A13: 1.55 | B13: 354.8133892 | C13: 2229.358274 | D13: -11.1957971321413i | E13: 0.0001+4.57018446174714E-06i | F13: -1.22262942523288E-08+2.09559677758162E-06i | G13: 1.90237979031741-47.7302027399211i | H13: -534.377666952131-21.2986582006792i | I13: 54.56385961 | J13: 2.282426312
A14: 1.6 | B14: 398.1071706 | C14: 2501.381125 | D14: -9.97826469717608i | E14: 0.0001+5.12783130564438E-06i | F14: -1.53919925263297E-08+0.0000023512982572223i | G14: 1.90236302439188-42.542149151092i | H14: -424.496825016341-18.9822818075026i | I14: 52.5661645 | J14: 2.560397404
A15: 1.65 | B15: 446.6835922 | C15: 2806.595783 | D15: -8.89313777230502i | E15: 0.0001+5.75352135548033E-06i | F15: -1.93773705295424E-08+2.63820003617147E-06i | G15: 1.90234191776237-37.9186039771976i | H15: -337.215369302691-16.9177887646917i | I15: 50.56906439 | J15: 2.872069222
A16: 1.7 | B16: 501.1872336 | C16: 3149.052262 | D16: -7.9260173825195i | E16: 0.0001+6.45555713806938E-06i | F16: -2.43946641733922E-08+2.96010912672449E-06i | G16: 1.90231534675608-33.7982155592833i | H16: -267.88524402102-15.0777845054223i | I16: 48.5727123 | J16: 3.221464827
A17: 1.75 | B17: 562.3413252 | C17: 3533.294752 | D17: -7.06407042783488i | E17: 0.0001+7.24325424171461E-06i | F17: -3.07110626400683E-08+3.32129706693255E-06i | G17: 1.90228189689645-30.1263088131125i | H17: -212.814367186529-13.4378532932719i | I17: 46.57730024 | J17: 3.613061764
A18: 1.8 | B18: 630.9573445 | C18: 3964.421916 | D18: -6.29585939585069i | E18: 0.0001+8.12706492840477E-06i | F18: -3.86629371807844E-08+3.72655660131731E-06i | G18: 1.90223978769077-26.8541597200051i | H18: -169.070013790869-11.976234240494i | I18: 44.583069 | J18: 4.051832743
A19: 1.85 | B19: 707.9457844 | C19: 4448.154551 | D19: -5.61119059291007i | E19: 0.0001+9.11871682898041E-06i | F19: -4.86737541114912E-08+4.18126527767882E-06i | G19: 1.90218677799241-23.9383487830438i | H19: -134.322637501216-10.6735325546289i | I19: 42.5903202 | J19: 4.543285396
A20: 1.9 | B20: 794.3282347 | C20: 4990.911493 | D20: -5.00097887997835i | E20: 0.0001+0.0000102313685616699i | F20: -6.12766259383767E-08+4.69145680388766E-06i | G20: 1.90212004693688-21.3401848687262i | H20: -106.721813823333-9.51246218191476i | I20: 40.59943117 | J20: 5.093498701
A21: 1.95 | B21: 891.2509381 | C21: 5599.894799 | D21: -4.45712711836776i | E21: 0.0001+0.0000114797843389586i | F21: -7.71427015428285E-08+5.26390111152247E-06i | G21: 1.90203604417243-19.0251917878286i | H21: -84.7976982496785-8.47761643259388i | I21: 38.61087318 | J21: 5.709152544 | K21: =B21 -> 891.2509381 | L21: 50.461 | M21: 2.465
A22: 2 | B22: 1000 | C22: 6283.185307 | D22: -3.97241872562662i | E22: 0.0001+0.0000128805298797182i | F22: -9.71169073067198E-08+5.90619418874882E-06i | G22: 1.90193030150698-16.9626508013646i | H22: -67.3827516796061-7.55526354454301i | I22: 36.62523366 | J22: 6.39754538
A23: 2.05 | B23: 1122.018454 | C23: 7049.849866 | D23: -3.54042191587478i | E23: 0.0001+0.0000144521922262316i | F23: -1.22262942523288E-07+6.62685887446719E-06i | G23: 1.90179719609513-15.1251929790546i | H23: -53.5495647048803-6.7331644726044i | I23: 34.64324291 | J23: 7.166592922
A24: 2.1 | B24: 1258.925412 | C24: 7910.06165 | D24: -3.15540435391267i | E24: 0.0001+0.0000162156263829513i | F24: -1.53919925263296E-07+7.43545795120692E-06i | G24: 1.90162965279841-13.4884359984522i | H24: -42.5614696769885-6.00041048596954i | I24: 32.66580598 | J24: 8.024798174
A25: 2.15 | B25: 1412.537545 | C25: 8875.235146 | D25: -2.81225709061598i | E25: 0.0001+0.0000181942320497371i | F25: -1.93773705295424E-07+8.34272103744044E-06i | G25: 1.90141877025502-12.030660561464i | H25: -33.8333104687712-5.34727841888i | I25: 30.69403994 | J25: 8.981179879
A26: 2.2 | B26: 1584.893192 | C26: 9958.17762 | D26: -2.50642677028477i | E26: 0.0001+0.0000204142641216573i | F26: -2.43946641733923E-07+9.36068696310139E-06i | G26: 1.90115335135843-10.732522129145i | H26: -26.9002807771627-4.76510165426138i | I26: 28.72931655 | J26: 10.04514257
A27: 2.25 | B27: 1778.27941 | C27: 11173.25906 | D27: -2.23385521037983i | E27: 0.0001+0.0000229051810754939i | F27: -3.07110626400683E-07+0.0000105028635175436i | G27: 1.90081931410913-9.57679414211364i | H27: -21.3931714930956-4.2461551288133i | I27: 26.77330978 | J27: 11.22626714
A28: 2.3 | B28: 1995.262315 | C28: 12536.60286 | D28: -1.99092555190598i | E28: 0.0001+0.0000257000358658323i | F28: -3.86629371807843E-07+0.0000117844066896987i | G28: 1.9003989529976-8.54813930865427i | H28: -17.0187089708517-3.78355283433829i | I28: 24.82804615 | J28: 12.5339969
A29: 2.35 | B29: 2238.721139 | C29: 14066.29976 | D29: -1.77441426589065i | E29: 0.0001+0.0000288359145176861i | F29: -4.86737541114907E-07+0.0000132223217788414i | G29: 1.8998700140049-7.63290591071201i | H29: -13.5439371381685-3.37115645618816i | I29: 22.89595483 | J29: 13.977191
A30: 2.4 | B30: 2511.886432 | C30: 15782.64792 | D30: -1.58144837911295i | E30: 0.0001+0.0000323544282355177i | F30: -6.12766259383767E-07+0.0000148356890445789i | G30: 1.8992045377856-6.81894640393462i | H30: -10.7838117377605-3.003493937885i | I30: 20.97991176 | J30: 15.56351773
A31: 2.45 | B31: 2818.382931 | C31: 17708.42222 | D31: -1.40946735149451i | E31: 0.0001+0.0000363022655586394i | F31: -7.71427015428276E-07+0.0000166459168903029i | G31: 1.89836741546248-6.09545587534471i | H31: -8.59134604877376-2.67568689323538i | I31: 19.08326967 | J31: 17.29866609
A32: 2.5 | B32: 3162.27766 | C32: 19869.17653 | D32: -1.25618909928837i | E32: 0.0001+0.0000407318118897639i | F32: -9.71169073067187E-07+0.0000186770259396966i | G32: 1.89731458963527-5.45282817404425i | H32: -6.84978331252689-2.38338590542061i | I32: 17.20986238 | J32: 19.1853696 | K32: =B32 -> 3162.27766 | L32: 28.58 | M32: 8.653
A33: 2.55 | B33: 3548.133892 | C33: 22293.58274 | D33: -1.11957971321414i | E33: 0.0001+0.0000457018446174713i | F33: -1.22262942523287E-06+0.0000209559677758161i | G33: 1.89599081977262-4.88252774869715i | H33: -5.46637901664644-2.12271285825767i | I33: 15.36396934 | J33: 21.22226499
A34: 2.6 | B34: 3981.071706 | C34: 25013.81125 | D34: =IMDIV((VOUT_nom*RSx*(1/NCT)),(COMPLEX(0,C34*(L_AVG*uH)*4))) -> -0.997826469717616i | E34: =IMPRODUCT(gMC,COMPLEX(1,C34*(RZCx*kΩ)*(CZCx*pF))) -> 0.0001+0.0000512783130564436i | F34: =IMPRODUCT((COMPLEX(0,C34*(CZCx+CPCx)*pF)),(COMPLEX(1,C34*(RZCx*kΩ)*CZCx*CPCx*pF/(CZCx+CPCx)))) -> -1.53919925263295E-06+0.0000235129825722229i | G34: =IMDIV(E34,F34) -> 1.89432691650932-4.37697541169079i | H34: =IMPRODUCT(G34,D34) -> -4.36746192308823-1.89020953959155i | I34: =20*LOG(IMABS(H34)) -> 13.55022488 | J34: =(180/PI())*IMARGUMENT(H34)+180 -> 23.40265182
A35: 2.65 | B35: 4466.835922 | C35: 28065.95783 | D35: -0.889313777230508i | E35: 0.0001+0.000057535213554803i | F35: -1.93773705295421E-06+0.0000263820003617145i | G35: 1.89223633444188-3.92944640424746i | H35: -3.49451082418615-1.68279184199532i | I35: 11.77345838 | J35: 25.71327585
A36: 2.7 | B36: 5011.872336 | C36: 31490.52262 | D36: -0.792601738251955i | E36: 0.0001+0.0000645555713806935i | F36: -0.0000024394664173392+0.0000296010912672448i | G36: 1.8896109996203-3.53397925877026i | H36: -2.80103810344766-1.49770896291906i | I36: 10.03845823 | J36: 28.13331863
A37: 2.75 | B37: 5623.413252 | C37: 35332.94752 | D37: -0.706407042783492i | E37: 0.0001+0.0000724325424171457i | F37: -3.07110626400679E-06+0.0000332129706693253i | G37: 1.88631623931485-3.18529404285313i | H37: -2.25011414520775-1.33250707636888i | I37: 8.349664891 | J37: 30.63381899
A38: 2.8 | B38: 6309.573445 | C38: 39644.21916 | D38: -0.629585939585072i | E38: 0.0001+0.0000812706492840472i | F38: -3.86629371807839E-06+0.0000372655660131729i | G38: 1.88218468323903-2.87871862134468i | H38: -1.81240076802033-1.18499701226968i | I38: 6.710815723 | J38: 33.17775296
A39: 2.85 | B39: 7079.457844 | C39: 44481.54551 | D39: -0.561119059291012i | E39: 0.0001+0.0000911871682898035i | F39: -4.86737541114906E-06+0.000041812652776788i | G39: 1.87700902597816-2.6101215859745i | H39: -1.46458896895718-1.0532255389376i | I39: 5.12458238 | J39: 35.7209333
A40: 2.9 | B40: 7943.282347 | C40: 49909.11493 | D40: -0.500097887997839i | E40: 0.0001+0.000102313685616698i | F40: -6.12766259383763E-06+0.0000469145680388763i | G40: 1.87053359339332-2.37585047438546i | H40: -1.18815780443883-0.935449899485008i | I40: 3.592254265 | J40: 38.21375324
A41: 2.95 | B41: 8912.509381 | C41: 55998.94799 | D41: -0.445712711836779i | E41: 0.0001+0.000114797843389585i | F41: -7.71427015428274E-06+0.0000526390111152243i | G41: 1.86244476119643-2.17267383281485i | H41: -0.968388345960715-0.830115305159063i | I41: 2.113521589 | J41: 40.60361904
A42: 3 | B42: 10000 | C42: 62831.85307 | D42: -0.397241872562665i | E42: 0.0001+0.000128805298797181i | F42: -9.71169073067185E-06+0.0000590619418874878i | G42: 1.85236045983169-1.99772557652065i | H42: -0.793580248883393-0.73583513772458i | I42: 0.6863957796 | J42: 42.83774874
A43: 3.05 | B43: 11220.18454 | C43: 70498.49866 | D43: -0.354042191587481i | E43: 0.0001+0.000144521922262315i | F43: -0.0000122262942523286+0.0000662685887446714i | G43: 1.83981930336337-1.84844998957194i | H43: -0.654429285347906-0.65137365828772i | I43: -0.69272331 | J43: 44.86592601
A44: 3.1 | B44: 12589.25412 | C44: 79100.6165 | D44: -0.31554043539127i | E44: 0.0001+0.000162156263829511i | F44: -0.0000153919925263294+0.0000743545795120686i | G44: 1.82427034563815-1.72254562350498i | H44: -0.543532796022088-0.575631059134044i | I44: -2.028855513 | J44: 46.64282556
A45: 3.15 | B45: 14125.37545 | C45: 88752.35146 | D45: -0.2812257090616i | E45: 0.0001+0.00018194232049737i | F45: -0.000019377370529542+0.0000834272103744037i | G45: 1.80506513873137-1.61790638111243i | H45: -0.45499686922363-0.507630723542105i | I45: -3.328169516 | J45: 48.1296608
A46: 3.2 | B46: 15848.93192 | C46: 99581.7762 | D46: -0.250642677028479i | E46: 0.0001+0.000204142641216571i | F46: -0.0000243946641733918+0.0000936068696310131i | G46: 1.78145467221242-1.53255833716303i | H46: -0.384124524328856-0.446508568048212i | I46: -4.5976872 | J46: 49.29509078
A47: 3.25 | B47: 17782.7941 | C47: 111732.5906 | D47: -0.223385521037985i | E47: 0.0001+0.000229051810754937i | F47: -0.0000307110626400678+0.000105028635175435i | G47: 1.7525948781461-1.46459154523398i | H47: -0.32716854543992-0.39150432002317i | I47: -5.8450099 | J47: 50.1154966
A48: 3.3 | B48: 19952.62315 | C48: 125366.0286 | D48: -0.1990925551906i | E48: 0.0001+0.000257000358658321i | F48: -0.0000386629371807837+0.000117844066896986i | G48: 1.71756555282997-1.41208745976501i | H48: -0.281136100517219-0.341954514620274i | I48: -7.078095274 | J48: 50.57484714
A49: 3.35 | B49: 22387.21139 | C49: 140662.9976 | D49: -0.177441426589067i | E49: 0.0001+0.000288359145176859i | F49: -0.0000486737541114899+0.000132223217788413i | G49: 1.67540843306476-1.37304492466542i | H49: -0.24363505020351-0.297286862482364i | I49: -8.305092064 | J49: 50.66440524
A50: 3.4 | B50: 25118.86432 | C50: 157826.4792 | D50: -0.158144837911296i | E50: 0.0001+0.000323544282355175i | F50: -0.0000612766259383755+0.000148356890445787i | G50: 1.62519015770086-1.34531108580426i | H50: -0.212754003604784-0.257015434064636i | I50: -9.534221231 | J50: 50.38248854
A51: 3.45 | B51: 28183.82931 | C51: 177084.2222 | D51: -0.140946735149452i | E51: 0.0001+0.000363022655586391i | F51: -0.0000771427015428266+0.000166459168903028i | G51: 1.5660940423024-1.32652786114755i | H51: -0.186969771113533-0.220735842199531i | I51: -10.77367911 | J51: 49.73441641
A52: 3.5 | B52: 31622.7766 | C52: 198691.7653 | D52: -0.125618909928838i | E52: 0.0001+0.000407318118897636i | F52: -0.0000971169073067174+0.000186770259396965i | G52: 1.49753998281924-1.31410885486808i | H52: -0.165076921876362-0.188119340216604i | I52: -12.03153269 | J52: 48.7326698 | K52: =B52 -> 31622.7766 | L52: -5.657 | M52: 47.447
A53: 3.55 | B53: 35481.33892 | C53: 222935.8274 | D53: -0.111957971321414i | E53: 0.0001+0.000457018446174709i | F53: -0.000122262942523285+0.000209559677758159i | G53: 1.41932376456666-1.30526398387009i | H53: -0.146134707673002-0.158904609329155i | I53: -13.31557911 | J53: 47.39718115
A54: 3.6 | B54: 39810.71706 | C54: 250138.1125 | D54: -0.0997826469717624i | E54: 0.0001+0.000512783130564432i | F54: -0.000153919925263294+0.000235129825722228i | G54: 1.33175622958114-1.29708691098317i | H54: -0.129426765330327-0.13288616170874i | I54: -14.63315081 | J54: 45.75557589
A55: 3.65 | B55: 44668.35922 | C55: 280659.5783 | D55: -0.0889313777230514i | E55: 0.0001+0.000575352135548026i | F55: -0.000193773705295419+0.000263820003617144i | G55: 1.23577197590413-1.28671105305498i | H55: -0.114428986679658-0.109898904368692i | I55: -15.9908638 | J55: 43.84312502
A56: 3.7 | B56: 50118.72336 | C56: 314905.2262 | D56: -0.0792601738251959i | E56: 0.0001+0.00064555571380693i | F56: -0.000243946641733917+0.000296010912672446i | G56: 1.13297169194543-1.27152285039631i | H56: -0.10078112214512-0.0897995332426211i | I56: -17.39432779 | J56: 41.70216418
A57: 3.75 | B57: 56234.13252 | C57: 353329.4752 | D57: -0.0706407042783496i | E57: 0.0001+0.000724325424171451i | F57: -0.000307110626400675+0.000332129706693251i | G57: 1.02556772618662-1.24939967260664i | H57: -0.0882584727980725-0.0724468264629684i | I57: -18.84785669 | J57: 39.3808065
A58: 3.8 | B58: 63095.73445 | C58: 396442.1916 | D58: -0.0629585939585075i | E58: 0.0001+0.000812706492840466i | F58: -0.000386629371807835+0.000372655660131726i | G58: 0.916221963760213-1.21892237494686i | H58: -0.076741638871219-0.0576840465922456i | I58: -20.35423212 | J58: 36.93092358
A59: 3.85 | B59: 70794.57844 | C59: 444815.4551 | D59: -0.0561119059291015i | E59: 0.0001+0.000911871682898028i | F59: -0.000486737541114897+0.000418126527767876i | G59: 0.807794675161169-1.1795089791276i | H59: -0.0661844968793384-0.0453268988226726i | I59: -21.91457159 | J59: 34.40555629
A60: 3.9 | B60: 79432.82347 | C60: 499091.1493 | D60: -0.0500097887997842i | E60: 0.0001+0.00102313685616698i | F60: -0.000612766259383749+0.000469145680388759i | G60: 0.703051646210294-1.13143176968402i | H60: -0.0565826638432639-0.0351594643423174i | I60: -23.52833666 | J60: 31.85608521
A61: 3.95 | B61: 89125.09381 | C61: 559989.4799 | D61: -0.0445712711836782i | E61: 0.0001+0.00114797843389584i | F61: -0.000771427015428262+0.000526390111152239i | G61: 0.604391356309382-1.07571135580209i | H61: -0.0479458225548171-0.0269384910431365i | I61: -25.1934868 | J61: 29.32957349
A62: 4 | B62: 100000 | C62: 628318.5307 | D62: -0.0397241872562668i | E62: 0.0001+0.0012880529879718i | F62: -0.000971169073067165+0.000590619418874873i | G62: 0.513646948620219-1.01391524192696i | H62: -0.0402769589322896-0.0204042075705996i | I62: -26.90675414 | J62: 26.86666055
A63: 4.05 | B63: 112201.8454 | C63: 704984.9866 | D63: -0.0354042191587484i | E63: 0.0001+0.00144521922262314i | F63: -0.00122262942523284+0.000662685887446709i | G63: 0.431992819106607-0.947910833817991i | H63: -0.0335600429034441-0.0152943684426559i | I63: -28.66399086 | J63: 24.50024846
A64: 4.1 | B64: 125892.5412 | C64: 791006.165 | D64: -0.0315540435391273i | E64: 0.0001+0.0016215626382951i | F64: -0.00153919925263292+0.000743545795120681i | G64: 0.359954848657412-0.87962602751177i | H64: -0.027755757970256-0.011358030966656i | I64: -30.4605341 | J64: 22.25504055
A65: 4.15 | B65: 141253.7545 | C65: 887523.5146 | D65: -0.0281225709061603i | E65: 0.0001+0.00181942320497368i | F65: -0.00193773705295417+0.00083427210374403i | G65: 0.297499316476382-0.8108570881478i | H65: -0.0228033859561992-0.00836644562214128i | I65: -32.29154007 | J65: 20.14782878
A66: 4.2 | B66: 158489.3192 | C66: 995817.762 | D66: =IMDIV((VOUT_nom*RSx*(1/NCT)),(COMPLEX(0,C66*(L_AVG*uH)*4))) -> -0.0250642677028481i | E66: =IMPRODUCT(gMC,COMPLEX(1,C66*(RZCx*kΩ)*(CZCx*pF))) -> 0.0001+0.0020414264121657i | F66: =IMPRODUCT((COMPLEX(0,C66*(CZCx+CPCx)*pF)),(COMPLEX(1,C66*(RZCx*kΩ)*CZCx*CPCx*pF/(CZCx+CPCx)))) -> -0.00243946641733914+0.000936068696310124i | G66: =IMDIV(E66,F66) -> 0.244165044190469-0.743142494063608i | H66: =IMPRODUCT(G66,D66) -> -0.0186263224125725-0.00611981803126765i | I66: =20*LOG(IMABS(H66)) -> -34.15225592 | J66: =(180/PI())*IMARGUMENT(H66)+180 -> 18.1883257
A67: 4.25 | B67: =10*10^A67 -> 177827.941 | C67: =2*PI()*B67 -> 1117325.906 | D67: -0.0223385521037987i | E67: 0.0001+0.00229051810754936i | F67: -0.00307110626400672+0.00105028635175434i | G67: 0.199205514619684-0.677702135788276i | H67: -0.0151388844711621-0.00444996276769584i | I67: -36.03821598 | J67: 16.38030794
A68: =A67+0.05 -> 4.3 | B68: 199526.2315 | C68: 1253660.286 | D68: -0.0199092555190602i | E68: 0.0001+0.00257000358658319i | F68: -0.0038662937180783+0.00117844066896985i | G68: 0.161717300406682-0.615429017144257i | H68: -0.0122527335561691-0.00321967105564925i | I68: -37.94536433 | J68: 14.72286416
A69: 4.35 | B69: 223872.1139 | C69: 1406629.976 | D69: -0.0177441426589068i | E69: 0.0001+0.00288359145176857i | F69: -0.00486737541114892+0.00132223217788412i | G69: 0.130742404020402-0.556916080882082i | H69: -0.00988199838821094-0.00231991186850644i | I69: -39.87011502 | J69: 13.21159569
A70: 4.4 | B70: 251188.6432 | C70: 1578264.792 | D70: -0.0158144837911297i | E70: 0.0001+0.00323544282355172i | F70: -0.00612766259383745+0.00148356890445786i | G70: 0.105341325446938-0.502501836811472i | H70: -0.00794680715326793-0.00166591868381672i | I70: -41.80936495 | J70: 11.83967732
A71: 4.45 | B71: 281838.2931 | C71: 1770842.222 | D71: -0.0140946735149453i | E71: 0.0001+0.00363022655586388i | F71: -0.00771427015428255+0.00166459168903027i | G71: 0.0846394947001095-0.452322291887232i | H71: -0.00637533502768233-0.00119296604426799i | I71: -43.76047467 | J71: 10.59873683
A72: 4.5 | B72: 316227.766 | C72: 1986917.653 | D72: -0.0125618909928838i | E72: 0.0001+0.00407318118897633i | F72: -0.00971169073067156+0.00186770259396963i | G72: 0.0678524108979935-0.406361072915072i | H72: -0.00510466350171044-0.000852354589304955i | I72: -45.72122978 | J72: 9.479547221
A73: 4.55 | B73: 354813.3892 | C73: 2229358.274 | D73: -0.0111957971321416i | E73: 0.0001+0.00457018446174705i | F73: -0.0122262942523283+0.00209559677758157i | G73: 0.0542953678190368-0.364493375665257i | H73: -0.0040807938899577-0.000607879923316946i | I73: -47.68979291 | J73: 8.472547176
A74: 4.6 | B74: 398107.1706 | C74: 2501381.125 | D74: -0.00997826469717631i | E74: 0.0001+0.00512783130564427i | F74: -0.015391992526329+0.00235129825722225i | G74: 0.0433829944318653-0.326522049555738i | H74: -0.00325812343993167-0.000432887001797278i | I74: -49.66465292 | J74: 7.568215262
A75: 4.65 | B75: 446683.5922 | C75: 2806595.783 | D75: -0.00889313777230521i | E75: 0.0001+0.00575352135548021i | F75: -0.0193773705295416+0.00263820003617142i | G75: 0.034622721444305-0.292205781062052i | H75: -0.00259862626884888-0.00030790463185635i | I75: -51.64457574 | J75: 6.757326374
A76: 4.7 | B76: 501187.2336 | C76: 3149052.262 | D76: -0.00792601738251964i | E76: 0.0001+0.00645555713806924i | F76: -0.0243946641733912+0.00296010912672443i | G76: 0.0276051321780712-0.261280208207041i | H76: -0.00207091147195736-0.000218798757490145i | I76: -53.6285592 | J76: 6.031117045
A77: 4.75 | B77: 562341.3252 | C77: 3533294.752 | D77: -0.00706407042783503i | E77: 0.0001+0.00724325424171446i | F77: -0.030711062640067+0.00332129706693248i | G77: 0.0219931716490279-0.233473145141824i | H77: -0.00164927074028999-0.000155361313460198i | I77: -55.61579316 | J77: 5.381382773
A78: 4.8 | B78: 630957.3445 | C78: 3964421.916 | D78: -0.00629585939585081i | E78: 0.0001+0.00812706492840459i | F78: -0.0386629371807829+0.00372655660131723i | G78: 0.0175114335219152-0.208515135374196i | H78: -0.00131278197422274-0.000110249523273767i | I78: -57.60562502 | J78: 4.800526173
A79: 4.85 | B79: 707945.7844 | C79: 4448154.551 | D79: -0.0056111905929102i | E79: 0.0001+0.00911871682898021i | F79: -0.0486737541114889+0.00418126527767873i | G79: 0.0139362093718364-0.186146435713137i | H79: -0.00104450312897732-0.0000781987269280754i | I79: -59.59753062 | J79: 4.281570694
A80: 4.9 | B80: 794328.2347 | C80: 4990911.493 | D80: -0.00500097887997846i | E80: 0.0001+0.0102313685616697i | F80: -0.061276625938374+0.00469145680388756i | G80: 0.0110866280632446-0.166121354906969i | H80: -0.000830769387403158-0.0000554439927944627i | I80: -61.59108987 | J80: 3.818151068
A81: 4.95 | B81: 891250.9381 | C81: 5599894.799 | D81: -0.00445712711836785i | E81: 0.0001+0.0114797843389583i | F81: -0.0771427015428251+0.00526390111152235i | G81: 0.00881698944700457-0.148210684222159i | H81: -0.000660593859878439-0.0000392984427666072i | I81: -63.58596676 | J81: 3.404488733
A82: 5 | B82: 1000000 | C82: 6283185.307 | D82: -0.00397241872562671i | E82: 0.0001+0.0128805298797179i | F82: -0.0971169073067152+0.00590619418874869i | G82: 0.00701026583236064-0.132202787799334i | H82: -0.000525164829834129-0.0000278477112640905i | I82: -65.58189287 | J82: 3.035358194
A83: 5.05 | B83: 1122018.454 | C83: 7049849.866 | D83: -0.00354042191587487i | E83: 0.0001+0.0144521922262313i | F83: -0.122262942523283+0.00662685887446704i | G83: 0.00557267547085688-0.117903778486172i | H83: -0.000417429121316899-0.00001972962236708i | I83: -67.57865406 | J83: 2.70604851
A84: 5.1 | B84: 1258925.412 | C84: 7910061.65 | D84: -0.00315540435391275i | E84: 0.0001+0.0162156263829509i | F84: -0.153919925263289+0.00743545795120675i | G84: 0.00442920187538535-0.105137091321787i | H84: -0.000331750035714489-0.0000139759228819495i | I84: -69.57607959 | J84: 2.412322817
A85: 5.15 | B85: 1412537.545 | C85: 8875235.146 | D85: -0.00281225709061604i | E85: 0.0001+0.0181942320497367i | F85: -0.193773705295414+0.00834272103744024i | G85: 0.00351992557923732-0.0937426791982105i | H85: -0.000263628514268512-9.89893566865093E-06i | I85: -71.5740335 | J85: 2.150377816
A86: 5.2 | B86: 1584893.192 | C86: 9958177.62 | D86: -0.00250642677028483i | E86: 0.0001+0.0204142641216568i | F86: -0.24394664173391+0.00936068696310116i | G86: 0.00279704064736147-0.0835759892196938i | H86: -0.000209477096733277-0.0000070105775561216i | I86: -73.57240752 | J86: 1.9168045
A87: 5.25 | B87: 1778279.41 | C87: 11173259.06 | D87: -0.00223385521037989i | E87: 0.0001+0.0229051810754934i | F87: -0.307110626400667+0.0105028635175433i | G87: 0.00222244039437115-0.0745068295276212i | H87: -0.000166437469349163-4.96461005472473E-06i | I87: -75.57111551 | J87: 1.708550879
A88: 5.3 | B88: 1995262.315 | C88: 12536602.86 | D88: -0.00199092555190603i | E88: 0.0001+0.0257000358658316i | F88: -0.386629371807823+0.0117844066896984i | G88: 0.00176577141053679-0.066418200917681i | H88: -0.00013223369331864-3.51551942006285E-06i | I88: -77.57008894 | J88: 1.522887134
A89: 5.35 | B89: 2238721.139 | C89: 14066299.76 | D89: -0.0017744142658907i | E89: 0.0001+0.0288359145176854i | F89: -0.486737541114884+0.0132223217788411i | G89: 0.00140286988990731-0.0592051421687761i | H89: -0.000105054448878363-2.48927234584005E-06i | I89: -79.56927334 | J89: 1.357373414
A90: 5.4 | B90: 2511886.432 | C90: 15782647.92 | D90: -0.00158144837911299i | E90: 0.0001+0.0323544282355169i | F90: -0.612766259383736+0.0148356890445785i | G90: 0.00111450819301784-0.052773620027725i | H90: -0.0000834587558527705-1.76253717535621E-06i | I90: -81.56862536 | J90: 1.209830307
A91: 5.45 | B91: 2818382.931 | C91: 17708422.22 | D91: -0.00140946735149454i | E91: 0.0001+0.0363022655586385i | F91: -0.771427015428239+0.0166459168903025i | G91: 0.000885392005183026-0.0470394822467563i | H91: -0.00006630061445801-1.24793112457976E-06i | I91: -83.56811059 | J91: 1.078311945
A92: 5.5 | B92: 3162277.66 | C92: 19869176.53 | D92: -0.00125618909928839i | E92: 0.0001+0.040731811889763i | F92: -0.971169073067143+0.0186770259396962i | G92: 0.000703359193372128-0.0419274834435016i | H92: -0.0000526688476623212-8.83552151598342E-07i | I92: -85.56770164 | J92: 0.9610816155
A93: 5.55 | B93: 3548133.892 | C93: 22293582.74 | D93: -0.00111957971321416i | E93: 0.0001+0.0457018446174701i | F93: -1.22262942523281+0.0209559677758156i | G93: 0.0005587405528579-0.0373703877278671i | H93: -0.0000418391279750674-6.25554587929769E-07i | I93: -87.56737678 | J93: 0.8565897306
A94: 5.6 | B94: 3981071.706 | C94: 25013811.25 | D94: -0.000997826469717639i | E94: 0.0001+0.0512783130564423i | F94: -1.53919925263288+0.0235129825722223i | G94: 0.000443850207790674-0.0333081481988414i | H94: -0.0000332357519300818-4.42885485923209E-07i | I94: -89.56711871 | J94: 0.7634539872
A95: 5.65 | B95: 4466835.922 | C95: 28065957.83 | D95: -0.000889313777230527i | E95: 0.0001+0.0575352135548016i | F95: -1.93773705295412+0.0263820003617139i | G95: 0.000352579670322448-0.0296871609644416i | H95: -0.0000264012012525382-3.1355395838915E-07i | I95: -91.56691371 | J95: 0.6804415332
A96: 5.7 | B96: 5011872.336 | C96: 31490522.62 | D96: -0.000792601738251974i | E96: 0.0001+0.0645555713806918i | F96: -2.43946641733908+0.0296010912672441i | G96: 0.000280074662762923-0.026459589853852i | H96: -0.0000209719169115974-2.21987664546228E-07i | I96: -93.56675087 | J96: 0.6064529699
A97: 5.75 | B97: 5623413.252 | C97: 35332947.52 | D97: -0.000706407042783507i | E97: 0.0001+0.072432542417144i | F97: -3.07110626400666+0.0332129706693246i | G97: 0.000222477948795153-0.0235827571687695i | H97: -0.000016659025752272-1.57159989892925E-07i | I97: -95.56662151 | J97: 0.5405080191
A98: 5.8 | B98: 6309573.445 | C98: 39644219.16 | D98: =IMDIV((VOUT_nom*RSx*(1/NCT)),(COMPLEX(0,C98*(L_AVG*uH)*4))) -> -0.000629585939585088i | E98: 0.0001+0.0812706492840453i | F98: -3.86629371807822+0.037265566013172i | G98: =IMDIV(E98,F98) -> 0.000176724766900417-0.0210185954459692i | H98: =IMPRODUCT(G98,D98) -> -0.0000132330121626094-1.11263428416955E-07i | I98: =20*LOG(IMABS(H98)) -> -97.56651875 | J98: 0.4817326974
A99: 5.85 | B99: 7079457.844 | C99: 44481545.51 | D99: -0.000561119059291024i | E99: 0.0001+0.0911871682898014i | F99: -4.86737541114881+0.041812652776787i | G99: =IMDIV(E99,F99) -> 0.000140380154167474-0.0187331551238694i | H99: =IMPRODUCT(G99,D99) -> -0.0000105115303806584-7.87699800495819E-08i | I99: =20*LOG(IMABS(H99)) -> -99.56643713 | J99: 0.4293478465
A100: 5.9 | B100: 7943282.347 | C100: 49909114.93 | D100: -0.00050009788799785i | E100: 0.0001+0.102313685616696i | F100: -6.1276625938373+0.0469145680388752i | G100: =IMDIV(E100,F100) -> 0.000111509612363172-0.0166961631167965i | H100: =IMPRODUCT(G100,D100) -> -8.34971591237753E-06-5.57657216342813E-08i | I100: =20*LOG(IMABS(H100)) -> -101.5663723 | J100: 0.3826588855
A101: 5.95 | B101: 8912509.381 | C101: 55998947.99 | D101: -0.00044571271183679i | E101: 0.0001+0.114797843389582i | F101: -7.71427015428234+0.052639011115223i | G101: =IMDIV(E101,F101) -> 0.0000885763013496212-0.014880627528574i | H101: =IMPRODUCT(G101,D101) -> -6.63248484959391E-06-3.94795834790124E-08i | I101: =20*LOG(IMABS(H101)) -> -103.5663208 | J101: 0.3410466584
A102: =A101+0.05 -> 6 | B102: 10000000 | C102: 62831853.07 | D102: -0.000397241872562674i | E102: 0.0001+0.128805298797178i | F102: -9.71169073067138+0.0590619418874864i | G102: =IMDIV(E102,F102) -> 0.0000703593308443111-0.0132624840319194i | H102: =IMPRODUCT(G102,D102) -> -5.26841399167223E-06-2.79496723368509E-08i | I102: =20*LOG(IMABS(H102)) -> -105.5662799 | J102: 0.3039592642 | K102: =B102 -> 10000000 | L102: -93.858 | M102: 0.687

Sheet Revision History
B2: TI Literature Number | C2: Version Suffix | D2: Release Date | E2: Changes Made
B3: SLUC114 | C3: 2 | D3: Mar 2025 | E3: 1. Revised method for inductance calculation; corrected "fcv" equation (cell D223); revised various equations for user-selected values instead of calculated target values. 2. Revised various equations to remove arbitrary design-margin terms. 3. Added additional useful calculation results. 4. Revised overall format to separate system-level inputs from controller-level inputs, and to group controller functions. 5. Added extensive help comments and error-checking. 6. Equations and text are locked but not hidden. 7. Added 'Revision History' and 'Notice and Disclaimer' sheets. 8. New revision suffix format implemented.
B4: SLUC114 | C4: A | D4: Nov 2018 | E4: (Changes made since initial release are not documented.)
B5: SLUC114 | C5: - | D5: Aug 2008 | E5: Initial release.

Sheet Notice and Disclaimer
B2: Important Notice and Disclaimer
B4: TI PROVIDES TECHNICAL AND RELIABILITY DATA (INCLUDING DATASHEETS), DESIGN RESOURCES (INCLUDING REFERENCE DESIGNS), APPLICATION OR OTHER DESIGN ADVICE, WEB TOOLS, SAFETY INFORMATION, AND OTHER RESOURCES “AS IS” AND WITH ALL FAULTS, AND DISCLAIMS ALL WARRANTIES, EXPRESS AND IMPLIED, INCLUDING WITHOUT LIMITATION ANY IMPLIED WARRANTIES OF MERCHANTABILITY, FITNESS FOR A PARTICULAR PURPOSE OR NON-INFRINGEMENT OF THIRD PARTY INTELLECTUAL PROPERTY RIGHTS. These resources are intended for skilled developers designing with TI products. You are solely responsible for (1) selecting the appropriate TI products for your application, (2) designing, validating and testing your application, and (3) ensuring your application meets applicable standards, and any other safety, security, regulatory or other requirements. These resources are subject to change without notice. TI grants you permission to use these resources only for development of an application that uses the TI products described in the resource. Other reproduction and display of these resources is prohibited. No license is granted to any other TI intellectual property right or to any third party intellectual property right. TI disclaims responsibility for, and you will fully indemnify TI and its representatives against, any claims, damages, costs, losses, and liabilities arising out of your use of these resources. TI’s products are provided subject to TI’s Terms of Sale or other applicable terms available either on ti.com or provided in conjunction with such TI products. TI’s provision of these resources does not expand or otherwise alter TI’s applicable warranties or warranty disclaimers for TI products. TI objects to and rejects any additional or different terms you may have proposed.
